Workbook

Sheet 은평구총괄
B1: 은평구 등록장애인 현황 (2025. 1월 말 기준)
B3: 서울특별시 은평구 | J3: (단위 : 명)
B5: 자치구 | C5: 장애유형 | D5: 합계 | G5: 심한 장애 | J5: 심하지 않은 장애
D6: 계 | E6: 남 | F6: 여 | G6: 계 | H6: 남 | I6: 여 | J6: 계 | K6: 남 | L6: 여
B7: 은평구 | C7: 합 계 | D7: =E7+F7 -> 21285 | E7: =H7+K7 -> 12402 | F7: =I7+L7 -> 8883 | G7: =SUM(G8:G22) -> 8063 | H7: 5047 | I7: 3016 | J7: 13222 | K7: 7355 | L7: 5867
C8: 지체 | D8: =E8+F8 -> 8339 | E8: =H8+K8 -> 4558 | F8: =I8+L8 -> 3781 | G8: 1353 | H8: 871 | I8: 482 | J8: 6986 | K8: 3687 | L8: 3299
C9: 시각 | D9: 2267 | E9: =H9+K9 -> 1326 | F9: =I9+L9 -> 941 | G9: 429 | H9: 235 | I9: 194 | J9: 1838 | K9: 1091 | L9: 747
C10: 청각 | D10: 3358 | E10: 1853 | F10: 1505 | G10: 619 | H10: 306 | I10: 313 | J10: 2739 | K10: 1547 | L10: 1192
C11: 언어 | D11: 168 | E11: 120 | F11: 48 | G11: 89 | H11: 63 | I11: 26 | J11: 79 | K11: 57 | L11: 22
C12: 지적 | D12: 1882 | E12: 1236 | F12: 646 | G12: 1882 | H12: 1236 | I12: 646 | J12: 0 | K12: 0 | L12: 0
C13: 뇌병변 | D13: 2104 | E13: 1252 | F13: 852 | G13: 1175 | H13: 671 | I13: 504 | J13: 929 | K13: 581 | L13: 348
C14: 자폐성 | D14: 491 | E14: 408 | F14: 83 | G14: 491 | H14: 408 | I14: 83 | J14: 0 | K14: 0 | L14: 0
C15: 정신 | D15: 1114 | E15: 684 | F15: 430 | G15: 1082 | H15: 666 | I15: 416 | J15: 32 | K15: 18 | L15: 14
C16: 신장 | D16: 962 | E16: 584 | F16: 378 | G16: 754 | H16: 466 | I16: 288 | J16: 208 | K16: 118 | L16: 90
C17: 심장 | D17: 44 | E17: 26 | F17: 18 | G17: 30 | H17: 14 | I17: 16 | J17: 14 | K17: 12 | L17: 2
C18: 호흡기 | D18: 117 | E18: 84 | F18: 33 | G18: 111 | H18: 82 | I18: 29 | J18: 6 | K18: 2 | L18: 4
C19: 간 | D19: 165 | E19: 109 | F19: 56 | G19: 7 | H19: 5 | I19: 2 | J19: 158 | K19: 104 | L19: 54
C20: 안면 | D20: 25 | E20: 14 | F20: 11 | G20: 9 | H20: 6 | I20: 3 | J20: 16 | K20: 8 | L20: 8
C21: 장루.요루 | D21: 184 | E21: 116 | F21: 68 | G21: 20 | H21: 12 | I21: 8 | J21: 164 | K21: 104 | L21: 60
C22: 뇌전증 | D22: =E22+F22 -> 65 | E22: =H22+K22 -> 32 | F22: =I22+L22 -> 33 | G22: 12 | H22: 6 | I22: 6 | J22: 53 | K22: 26 | L22: 27

Sheet 유형별
A1: 은평구 동별 장애인현황(유형별) (2025. 1월말)
A2: 동별 | B2: 합계 | E2: 지체 | H2: 시각 | K2: 청각 | N2: 언어 | Q2: 지적 | T2: 뇌병변 | W2: 자폐 | Z2: 정신 | AC2: 신장 | AF2: 심장 | AI2: 호흡기 | AL2: 간 | AO2: 안면 | AR2: 장루.요루 | AU2: 뇌전증
B3: 합계 | C3: 남성 | D3: 여성 | E3: 소계 | F3: 남성 | G3: 여성 | H3: 소계 | I3: 남성 | J3: 여성 | K3: 소계 | L3: 남성 | M3: 여성 | N3: 소계 | O3: 남성 | P3: 여성 | Q3: 소계 | R3: 남성 | S3: 여성 | T3: 소계 | U3: 남성 | V3: 여성 | W3: 소계 | X3: 남성 | Y3: 여성 | Z3: 소계 | AA3: 남성 | AB3: 여성 | AC3: 소계 | AD3: 남성 | AE3: 여성 | AF3: 소계 | AG3: 남성 | AH3: 여성 | AI3: 소계 | AJ3: 남성 | AK3: 여성 | AL3: 소계 | AM3: 남성 | AN3: 여성 | AO3: 소계 | AP3: 남성 | AQ3: 여성 | AR3: 소계 | AS3: 남성 | AT3: 여성 | AU3: 소계 | AV3: 남성 | AW3: 여성
A4: 합 계 | B4: =SUM(B5:B20) -> 21285 | C4: =SUM(C5:C20) -> 12402 | D4: =SUM(D5:D20) -> 8883 | E4: =SUM(E5:E20) -> 8339 | F4: =SUM(F5:F20) -> 4558 | G4: 3781 | H4: 2267 | I4: 1326 | J4: 941 | K4: 3358 | L4: 1853 | M4: 1505 | N4: 168 | O4: 120 | P4: 48 | Q4: 1882 | R4: 1236 | S4: 646 | T4: 2104 | U4: 1252 | V4: 852 | W4: 491 | X4: 408 | Y4: 83 | Z4: 1114 | AA4: 684 | AB4: 430 | AC4: 962 | AD4: 584 | AE4: 378 | AF4: 44 | AG4: 26 | AH4: 18 | AI4: 117 | AJ4: 84 | AK4: 33 | AL4: 165 | AM4: 109 | AN4: 56 | AO4: 25 | AP4: 14 | AQ4: 11 | AR4: 184 | AS4: 116 | AT4: 68 | AU4: 65 | AV4: 32 | AW4: 33
A5: 녹번동 | B5: =C5+D5 -> 1614 | C5: =SUM(F5,I5,L5,O5,R5,U5,X5,AA5,AD5,AG5,AJ5,AM5,AP5,AS5,AV5) -> 927 | D5: =SUM(G5,J5,M5,P5,S5,V5,Y5,AB5,AE5,AH5,AK5,AN5,AQ5,AT5,AW5) -> 687 | E5: 670 | F5: 364 | G5: 306 | H5: 177 | I5: 115 | J5: 62 | K5: 289 | L5: 155 | M5: 134 | N5: 13 | O5: 9 | P5: 4 | Q5: 113 | R5: 71 | S5: 42 | T5: 159 | U5: 85 | V5: 74 | W5: 24 | X5: 17 | Y5: 7 | Z5: 61 | AA5: 36 | AB5: 25 | AC5: 70 | AD5: 46 | AE5: 24 | AF5: 2 | AG5: 1 | AH5: 1 | AI5: 6 | AJ5: 4 | AK5: 2 | AL5: 10 | AM5: 9 | AN5: 1 | AO5: 3 | AP5: 3 | AQ5: 0 | AR5: 15 | AS5: 10 | AT5: 5 | AU5: 2 | AV5: 2 | AW5: 0
A6: 불광1동 | B6: =C6+D6 -> 1642 | C6: 920 | D6: =SUM(G6,J6,M6,P6,S6,V6,Y6,AB6,AE6,AH6,AK6,AN6,AQ6,AT6,AW6) -> 722 | E6: 669 | F6: 366 | G6: 303 | H6: 190 | I6: 112 | J6: 78 | K6: 266 | L6: 150 | M6: 116 | N6: 13 | O6: 10 | P6: 3 | Q6: 108 | R6: 62 | S6: 46 | T6: 156 | U6: 85 | V6: 71 | W6: 31 | X6: 26 | Y6: 5 | Z6: 68 | AA6: 37 | AB6: 31 | AC6: 93 | AD6: 45 | AE6: 48 | AF6: 4 | AG6: 1 | AH6: 3 | AI6: 9 | AJ6: 8 | AK6: 1 | AL6: 18 | AM6: 10 | AN6: 8 | AO6: 2 | AP6: 1 | AQ6: 1 | AR6: 11 | AS6: 5 | AT6: 6 | AU6: 4 | AV6: 2 | AW6: 2
A7: 불광2동 | B7: 1430 | C7: 841 | D7: 589 | E7: 541 | F7: 303 | G7: 238 | H7: 164 | I7: 108 | J7: 56 | K7: 258 | L7: 150 | M7: 108 | N7: 17 | O7: 15 | P7: 2 | Q7: 115 | R7: 71 | S7: 44 | T7: 132 | U7: 80 | V7: 52 | W7: 29 | X7: 29 | Y7: 0 | Z7: 67 | AA7: 26 | AB7: 41 | AC7: 64 | AD7: 38 | AE7: 26 | AF7: 3 | AG7: 3 | AH7: 0 | AI7: 2 | AJ7: 2 | AK7: 0 | AL7: 7 | AM7: 4 | AN7: 3 | AO7: 3 | AP7: 1 | AQ7: 2 | AR7: 18 | AS7: 7 | AT7: 11 | AU7: 10 | AV7: 4 | AW7: 6
A8: 갈현1동 | B8: 681 | C8: 383 | D8: 298 | E8: 274 | F8: 144 | G8: 130 | H8: 84 | I8: 49 | J8: 35 | K8: 109 | L8: 60 | M8: 49 | N8: 3 | O8: 2 | P8: 1 | Q8: 54 | R8: 34 | S8: 20 | T8: 57 | U8: 39 | V8: 18 | W8: 17 | X8: 15 | Y8: 2 | Z8: 36 | AA8: 16 | AB8: 20 | AC8: 29 | AD8: 14 | AE8: 15 | AF8: 2 | AG8: 1 | AH8: 1 | AI8: 2 | AJ8: 2 | AK8: 0 | AL8: 6 | AM8: 3 | AN8: 3 | AO8: 0 | AP8: 0 | AQ8: 0 | AR8: 7 | AS8: 3 | AT8: 4 | AU8: 1 | AV8: 1 | AW8: 0
A9: 갈현2동 | B9: 1282 | C9: 754 | D9: 528 | E9: 524 | F9: 294 | G9: 230 | H9: 129 | I9: 82 | J9: 47 | K9: 197 | L9: 121 | M9: 76 | N9: 18 | O9: 14 | P9: 4 | Q9: 118 | R9: 72 | S9: 46 | T9: 108 | U9: 64 | V9: 44 | W9: 20 | X9: 15 | Y9: 5 | Z9: 73 | AA9: 30 | AB9: 43 | AC9: 60 | AD9: 39 | AE9: 21 | AF9: 5 | AG9: 2 | AH9: 3 | AI9: 7 | AJ9: 6 | AK9: 1 | AL9: 13 | AM9: 8 | AN9: 5 | AO9: 0 | AP9: 0 | AQ9: 0 | AR9: 8 | AS9: 7 | AT9: 1 | AU9: 2 | AV9: 0 | AW9: 2
A10: 구산동 | B10: 2118 | C10: 1462 | D10: 656 | E10: 590 | F10: 328 | G10: 262 | H10: 163 | I10: 102 | J10: 61 | K10: 246 | L10: 139 | M10: 107 | N10: 14 | O10: 10 | P10: 4 | Q10: 404 | R10: 315 | S10: 89 | T10: 220 | U10: 158 | V10: 62 | W10: 44 | X10: 37 | Y10: 7 | Z10: 308 | AA10: 273 | AB10: 35 | AC10: 63 | AD10: 47 | AE10: 16 | AF10: 0 | AG10: 0 | AH10: 0 | AI10: 24 | AJ10: 18 | AK10: 6 | AL10: 17 | AM10: 16 | AN10: 1 | AO10: 2 | AP10: 1 | AQ10: 1 | AR10: 18 | AS10: 15 | AT10: 3 | AU10: 5 | AV10: 3 | AW10: 2
A11: 대조동 | B11: 1212 | C11: 701 | D11: 511 | E11: 494 | F11: 272 | G11: 222 | H11: 143 | I11: 75 | J11: 68 | K11: 200 | L11: 119 | M11: 81 | N11: 8 | O11: 6 | P11: 2 | Q11: 64 | R11: 44 | S11: 20 | T11: 120 | U11: 69 | V11: 51 | W11: 27 | X11: 21 | Y11: 6 | Z11: 67 | AA11: 34 | AB11: 33 | AC11: 61 | AD11: 41 | AE11: 20 | AF11: 2 | AG11: 1 | AH11: 1 | AI11: 6 | AJ11: 5 | AK11: 1 | AL11: 4 | AM11: 3 | AN11: 1 | AO11: 1 | AP11: 1 | AQ11: 0 | AR11: 11 | AS11: 9 | AT11: 2 | AU11: 4 | AV11: 1 | AW11: 3
A12: 응암1동 | B12: 1338 | C12: 729 | D12: 609 | E12: 573 | F12: 296 | G12: 277 | H12: 154 | I12: 87 | J12: 67 | K12: 225 | L12: 104 | M12: 121 | N12: 7 | O12: 4 | P12: 3 | Q12: 70 | R12: 42 | S12: 28 | T12: 138 | U12: 87 | V12: 51 | W12: 32 | X12: 27 | Y12: 5 | Z12: 50 | AA12: 30 | AB12: 20 | AC12: 56 | AD12: 29 | AE12: 27 | AF12: 5 | AG12: 3 | AH12: 2 | AI12: 5 | AJ12: 5 | AK12: 0 | AL12: 9 | AM12: 5 | AN12: 4 | AO12: 2 | AP12: 2 | AQ12: 0 | AR12: 9 | AS12: 7 | AT12: 2 | AU12: 3 | AV12: 1 | AW12: 2
A13: 응암2동 | B13: 962 | C13: 532 | D13: 430 | E13: 368 | F13: 203 | G13: 165 | H13: 94 | I13: 50 | J13: 44 | K13: 151 | L13: 72 | M13: 79 | N13: 9 | O13: 7 | P13: 2 | Q13: 70 | R13: 44 | S13: 26 | T13: 100 | U13: 52 | V13: 48 | W13: 36 | X13: 30 | Y13: 6 | Z13: 47 | AA13: 30 | AB13: 17 | AC13: 52 | AD13: 25 | AE13: 27 | AF13: 2 | AG13: 2 | AH13: 0 | AI13: 10 | AJ13: 6 | AK13: 4 | AL13: 8 | AM13: 3 | AN13: 5 | AO13: 2 | AP13: 0 | AQ13: 2 | AR13: 7 | AS13: 4 | AT13: 3 | AU13: 6 | AV13: 4 | AW13: 2
A14: 응암3동 | B14: 1293 | C14: 732 | D14: 561 | E14: 512 | F14: 281 | G14: 231 | H14: 151 | I14: 83 | J14: 68 | K14: 234 | L14: 118 | M14: 116 | N14: 7 | O14: 5 | P14: 2 | Q14: 88 | R14: 60 | S14: 28 | T14: 134 | U14: 83 | V14: 51 | W14: 18 | X14: 13 | Y14: 5 | Z14: 50 | AA14: 27 | AB14: 23 | AC14: 58 | AD14: 40 | AE14: 18 | AF14: 4 | AG14: 2 | AH14: 2 | AI14: 7 | AJ14: 5 | AK14: 2 | AL14: 12 | AM14: 3 | AN14: 9 | AO14: 0 | AP14: 0 | AQ14: 0 | AR14: 12 | AS14: 10 | AT14: 2 | AU14: 6 | AV14: 2 | AW14: 4
A15: 역촌동 | B15: 2145 | C15: 1200 | D15: 945 | E15: 884 | F15: 463 | G15: 421 | H15: 195 | I15: 109 | J15: 86 | K15: 343 | L15: 196 | M15: 147 | N15: 17 | O15: 7 | P15: 10 | Q15: 203 | R15: 124 | S15: 79 | T15: 228 | U15: 139 | V15: 89 | W15: 36 | X15: 30 | Y15: 6 | Z15: 92 | AA15: 39 | AB15: 53 | AC15: 99 | AD15: 62 | AE15: 37 | AF15: 1 | AG15: 1 | AH15: 0 | AI15: 14 | AJ15: 8 | AK15: 6 | AL15: 12 | AM15: 8 | AN15: 4 | AO15: 2 | AP15: 1 | AQ15: 1 | AR15: 14 | AS15: 9 | AT15: 5 | AU15: 5 | AV15: 4 | AW15: 1
A16: 신사1동 | B16: 1245 | C16: 746 | D16: 499 | E16: 476 | F16: 283 | G16: 193 | H16: 154 | I16: 86 | J16: 68 | K16: 170 | L16: 107 | M16: 63 | N16: 15 | O16: 8 | P16: 7 | Q16: 150 | R16: 89 | S16: 61 | T16: 116 | U16: 64 | V16: 52 | W16: 31 | X16: 25 | Y16: 6 | Z16: 51 | AA16: 33 | AB16: 18 | AC16: 53 | AD16: 34 | AE16: 19 | AF16: 2 | AG16: 2 | AH16: 0 | AI16: 5 | AJ16: 3 | AK16: 2 | AL16: 5 | AM16: 4 | AN16: 1 | AO16: 2 | AP16: 1 | AQ16: 1 | AR16: 10 | AS16: 5 | AT16: 5 | AU16: 5 | AV16: 2 | AW16: 3
A17: 신사2동 | B17: 893 | C17: 512 | D17: 381 | E17: 381 | F17: 207 | G17: 174 | H17: 87 | I17: 57 | J17: 30 | K17: 136 | L17: 71 | M17: 65 | N17: 7 | O17: 7 | P17: 0 | Q17: 82 | R17: 46 | S17: 36 | T17: 73 | U17: 44 | V17: 29 | W17: 21 | X17: 17 | Y17: 4 | Z17: 28 | AA17: 18 | AB17: 10 | AC17: 53 | AD17: 31 | AE17: 22 | AF17: 3 | AG17: 1 | AH17: 2 | AI17: 8 | AJ17: 6 | AK17: 2 | AL17: 3 | AM17: 2 | AN17: 1 | AO17: 1 | AP17: 1 | AQ17: 0 | AR17: 7 | AS17: 2 | AT17: 5 | AU17: 3 | AV17: 2 | AW17: 1
A18: 증산동 | B18: 697 | C18: 409 | D18: 288 | E18: 298 | F18: 167 | G18: 131 | H18: 55 | I18: 30 | J18: 25 | K18: 123 | L18: 73 | M18: 50 | N18: 6 | O18: 3 | P18: 3 | Q18: 47 | R18: 32 | S18: 15 | T18: 61 | U18: 33 | V18: 28 | W18: 18 | X18: 17 | Y18: 1 | Z18: 33 | AA18: 16 | AB18: 17 | AC18: 33 | AD18: 21 | AE18: 12 | AF18: 1 | AG18: 1 | AH18: 0 | AI18: 2 | AJ18: 2 | AK18: 0 | AL18: 8 | AM18: 7 | AN18: 1 | AO18: 1 | AP18: 0 | AQ18: 1 | AR18: 7 | AS18: 6 | AT18: 1 | AU18: 4 | AV18: 1 | AW18: 3
A19: 수색동 | B19: 820 | C19: 444 | D19: 376 | E19: 315 | F19: 167 | G19: 148 | H19: 99 | I19: 54 | J19: 45 | K19: 131 | L19: 69 | M19: 62 | N19: 4 | O19: 4 | P19: 0 | Q19: 64 | R19: 44 | S19: 20 | T19: 98 | U19: 45 | V19: 53 | W19: 21 | X19: 18 | Y19: 3 | Z19: 28 | AA19: 12 | AB19: 16 | AC19: 33 | AD19: 17 | AE19: 16 | AF19: 1 | AG19: 0 | AH19: 1 | AI19: 4 | AJ19: 0 | AK19: 4 | AL19: 11 | AM19: 8 | AN19: 3 | AO19: 2 | AP19: 2 | AQ19: 0 | AR19: 9 | AS19: 4 | AT19: 5 | AU19: 0 | AV19: 0 | AW19: 0
A20: 진관동 | B20: 1913 | C20: 1110 | D20: 803 | E20: 770 | F20: 420 | G20: 350 | H20: 228 | I20: 127 | J20: 101 | K20: 280 | L20: 149 | M20: 131 | N20: 10 | O20: 9 | P20: 1 | Q20: 132 | R20: 86 | S20: 46 | T20: 204 | U20: 125 | V20: 79 | W20: 86 | X20: 71 | Y20: 15 | Z20: 55 | AA20: 27 | AB20: 28 | AC20: 85 | AD20: 55 | AE20: 30 | AF20: 7 | AG20: 5 | AH20: 2 | AI20: 6 | AJ20: 4 | AK20: 2 | AL20: 22 | AM20: 16 | AN20: 6 | AO20: 2 | AP20: 0 | AQ20: 2 | AR20: 21 | AS20: 13 | AT20: 8 | AU20: 5 | AV20: 3 | AW20: 2

Sheet 정도별
B2: 은평구 동별 장애인현황(정도별)
B3: *2025. 1월말 기준 | K3: (단위 : 명)
B4: 자치구 | C4: 동 | D4: 합계 | G4: 심한 장애 | J4: 심하지 않은 장애
D5: 계 | E5: 남자 | F5: 여자 | G5: 계 | H5: 남자 | I5: 여자 | J5: 계 | K5: 남자 | L5: 여자
B6: 은평구 | C6: 합 계 | D6: =SUM(D7:D22) -> 21285 | E6: =SUM(E7:E22) -> 12402 | F6: =SUM(F7:F22) -> 8883 | G6: 8063 | H6: 5047 | I6: 3016 | J6: 13222 | K6: 7355 | L6: 5867
C7: 녹번동 | D7: =E7+F7 -> 1614 | E7: =H7+K7 -> 927 | F7: =I7+L7 -> 687 | G7: 546 | H7: 319 | I7: 227 | J7: 1068 | K7: 608 | L7: 460
C8: 불광1동 | D8: =E8+F8 -> 1642 | E8: =H8+K8 -> 920 | F8: =I8+L8 -> 722 | G8: 567 | H8: 320 | I8: 247 | J8: 1075 | K8: 600 | L8: 475
C9: 불광2동 | D9: 1430 | E9: 841 | F9: 589 | G9: 483 | H9: 290 | I9: 193 | J9: 947 | K9: 551 | L9: 396
C10: 갈현1동 | D10: 681 | E10: 383 | F10: 298 | G10: 247 | H10: 141 | I10: 106 | J10: 434 | K10: 242 | L10: 192
C11: 갈현2동 | D11: 1282 | E11: 754 | F11: 528 | G11: 487 | H11: 289 | I11: 198 | J11: 795 | K11: 465 | L11: 330
C12: 구산동 | D12: 2118 | E12: 1462 | F12: 656 | G12: 1142 | H12: 905 | I12: 237 | J12: 976 | K12: 557 | L12: 419
C13: 대조동 | D13: 1212 | E13: 701 | F13: 511 | G13: 429 | H13: 263 | I13: 166 | J13: 783 | K13: 438 | L13: 345
C14: 응암1동 | D14: 1338 | E14: 729 | F14: 609 | G14: 470 | H14: 269 | I14: 201 | J14: 868 | K14: 460 | L14: 408
C15: 응암2동 | D15: 962 | E15: 532 | F15: 430 | G15: 372 | H15: 227 | I15: 145 | J15: 590 | K15: 305 | L15: 285
C16: 응암3동 | D16: 1293 | E16: 732 | F16: 561 | G16: 396 | H16: 242 | I16: 154 | J16: 897 | K16: 490 | L16: 407
C17: 역촌동 | D17: 2145 | E17: 1200 | F17: 945 | G17: 788 | H17: 456 | I17: 332 | J17: 1357 | K17: 744 | L17: 613
C18: 신사1동 | D18: 1245 | E18: 746 | F18: 499 | G18: 496 | H18: 310 | I18: 186 | J18: 749 | K18: 436 | L18: 313
C19: 신사2동 | D19: 893 | E19: 512 | F19: 381 | G19: 315 | H19: 196 | I19: 119 | J19: 578 | K19: 316 | L19: 262
C20: 증산동 | D20: 697 | E20: 409 | F20: 288 | G20: 246 | H20: 158 | I20: 88 | J20: 451 | K20: 251 | L20: 200
C21: 수색동 | D21: 820 | E21: 444 | F21: 376 | G21: 320 | H21: 184 | I21: 136 | J21: 500 | K21: 260 | L21: 240
C22: 진관동 | D22: =E22+F22 -> 1913 | E22: =H22+K22 -> 1110 | F22: =I22+L22 -> 803 | G22: 759 | H22: 478 | I22: 281 | J22: 1154 | K22: 632 | L22: 522

Sheet 연령별
A1: 은평구 장애인 연령구간별(5세 간격), 장애정도별 등록 현황
A2: =정도별!B3 -> *2025. 1월말 기준
J3: (단위: 명)
A4: 구분 | B4: 나이 | C4: 합계 | F4: 심한 장애 | I4: 심하지 않은 장애
C5: 합계 | D5: 남성 | E5: 여성 | F5: 소계 | G5: 남성 | H5: 여성 | I5: 소계 | J5: 남성 | K5: 여성
A6: 합계 | B6: 합계 | C6: =SUM(C7:C28) -> 21285 | D6: 12402 | E6: 8883 | F6: 8063 | G6: 5047 | H6: 3016 | I6: 13222 | J6: 7355 | K6: 5867
B7: 0~4 | C7: =D7+E7 -> 35 | D7: =G7+J7 -> 18 | E7: =H7+K7 -> 17 | F7: 26 | G7: 15 | H7: 11 | I7: 9 | J7: 3 | K7: 6
B8: 5~9 | C8: =D8+E8 -> 270 | D8: =G8+J8 -> 184 | E8: =H8+K8 -> 86 | F8: 247 | G8: 173 | H8: 74 | I8: 23 | J8: 11 | K8: 12
B9: 10~14 | C9: 319 | D9: 210 | E9: 109 | F9: 293 | G9: 190 | H9: 103 | I9: 26 | J9: 20 | K9: 6
B10: 15~19 | C10: 258 | D10: 171 | E10: 87 | F10: 223 | G10: 153 | H10: 70 | I10: 35 | J10: 18 | K10: 17
B11: 20~24 | C11: 366 | D11: 230 | E11: 136 | F11: 308 | G11: 203 | H11: 105 | I11: 58 | J11: 27 | K11: 31
B12: 25~29 | C12: 495 | D12: 310 | E12: 185 | F12: 388 | G12: 251 | H12: 137 | I12: 107 | J12: 59 | K12: 48
B13: 30~34 | C13: 546 | D13: 352 | E13: 194 | F13: 408 | G13: 270 | H13: 138 | I13: 138 | J13: 82 | K13: 56
B14: 35~39 | C14: 500 | D14: 322 | E14: 178 | F14: 307 | G14: 199 | H14: 108 | I14: 193 | J14: 123 | K14: 70
B15: 40~44 | C15: 662 | D15: 442 | E15: 220 | F15: 358 | G15: 216 | H15: 142 | I15: 304 | J15: 226 | K15: 78
B16: 45~49 | C16: 841 | D16: 588 | E16: 253 | F16: 429 | G16: 289 | H16: 140 | I16: 412 | J16: 299 | K16: 113
B17: 50~54 | C17: 1332 | D17: 907 | E17: 425 | F17: 646 | G17: 412 | H17: 234 | I17: 686 | J17: 495 | K17: 191
B18: 55~59 | C18: 1659 | D18: 1115 | E18: 544 | F18: 699 | G18: 455 | H18: 244 | I18: 960 | J18: 660 | K18: 300
B19: 60~64 | C19: 2100 | D19: 1415 | E19: 685 | F19: 764 | G19: 519 | H19: 245 | I19: 1336 | J19: 896 | K19: 440
B20: 65~69 | C20: 2483 | D20: 1531 | E20: 952 | F20: 812 | G20: 517 | H20: 295 | I20: 1671 | J20: 1014 | K20: 657
B21: 70~74 | C21: 2377 | D21: 1346 | E21: 1031 | F21: 669 | G21: 435 | H21: 234 | I21: 1708 | J21: 911 | K21: 797
B22: 75~79 | C22: 2549 | D22: 1328 | E22: 1221 | F22: 571 | G22: 334 | H22: 237 | I22: 1978 | J22: 994 | K22: 984
B23: 80~84 | C23: 2351 | D23: 1088 | E23: 1263 | F23: 480 | G23: 238 | H23: 242 | I23: 1871 | J23: 850 | K23: 1021
B24: 85~89 | C24: 1530 | D24: 643 | E24: 887 | F24: 309 | G24: 132 | H24: 177 | I24: 1221 | J24: 511 | K24: 710
B25: 90~94 | C25: 506 | D25: 166 | E25: 340 | F25: 107 | G25: 39 | H25: 68 | I25: 399 | J25: 127 | K25: 272
B26: 95~99 | C26: 90 | D26: 33 | E26: 57 | F26: 15 | G26: 6 | H26: 9 | I26: 75 | J26: 27 | K26: 48
B27: 100~104 | C27: 14 | D27: 3 | E27: 11 | F27: 3 | G27: 1 | H27: 2 | I27: 11 | J27: 2 | K27: 9
B28: 105~109 | C28: =D28+E28 -> 2 | D28: =G28+J28 -> 0 | E28: =H28+K28 -> 2 | F28: 1 | G28: 0 | H28: 1 | I28: 1 | J28: 0 | K28: 1

Sheet 연령별,유형별
A1: 은평구 등록장애인 연령별, 유형별 현황
B2: =정도별!B3 -> *2025. 1월말 기준
A3: 구분 | B3: 나이 | C3: 합계 | F3: 지체 | I3: 시각 | L3: 청각 | O3: 언어 | R3: 지적 | U3: 뇌병변 | X3: 자폐 | AA3: 정신 | AD3: 신장 | AG3: 심장 | AJ3: 호흡기 | AM3: 간 | AP3: 안면 | AS3: 장루.요루 | AV3: 뇌전증
C4: 합계 | D4: 남성 | E4: 여성 | F4: 소계 | G4: 남성 | H4: 여성 | I4: 소계 | J4: 남성 | K4: 여성 | L4: 소계 | M4: 남성 | N4: 여성 | O4: 소계 | P4: 남성 | Q4: 여성 | R4: 소계 | S4: 남성 | T4: 여성 | U4: 소계 | V4: 남성 | W4: 여성 | X4: 소계 | Y4: 남성 | Z4: 여성 | AA4: 소계 | AB4: 남성 | AC4: 여성 | AD4: 소계 | AE4: 남성 | AF4: 여성 | AG4: 소계 | AH4: 남성 | AI4: 여성 | AJ4: 소계 | AK4: 남성 | AL4: 여성 | AM4: 소계 | AN4: 남성 | AO4: 여성 | AP4: 소계 | AQ4: 남성 | AR4: 여성 | AS4: 소계 | AT4: 남성 | AU4: 여성 | AV4: 소계 | AW4: 남성 | AX4: 여성
A5: 합계 | C5: 21285 | D5: 12402 | E5: 8883 | F5: 8339 | G5: 4558 | H5: 3781 | I5: 2267 | J5: 1326 | K5: 941 | L5: 3358 | M5: 1853 | N5: 1505 | O5: 168 | P5: 120 | Q5: 48 | R5: 1882 | S5: 1236 | T5: 646 | U5: 2104 | V5: 1252 | W5: 852 | X5: 491 | Y5: 408 | Z5: 83 | AA5: 1114 | AB5: 684 | AC5: 430 | AD5: 962 | AE5: 584 | AF5: 378 | AG5: 44 | AH5: 26 | AI5: 18 | AJ5: 117 | AK5: 84 | AL5: 33 | AM5: 165 | AN5: 109 | AO5: 56 | AP5: 25 | AQ5: 14 | AR5: 11 | AS5: 184 | AT5: 116 | AU5: 68 | AV5: 65 | AW5: 32 | AX5: 33
B6: 0 | C6: 1 | D6: 1 | E6: 0 | F6: 0 | G6: 0 | H6: 0 | I6: 0 | J6: 0 | K6: 0 | L6: 1 | M6: 1 | N6: 0 | O6: 0 | P6: 0 | Q6: 0 | R6: 0 | S6: 0 | T6: 0 | U6: 0 | V6: 0 | W6: 0 | X6: 0 | Y6: 0 | Z6: 0 | AA6: 0 | AB6: 0 | AC6: 0 | AD6: 0 | AE6: 0 | AF6: 0 | AG6: 0 | AH6: 0 | AI6: 0 | AJ6: 0 | AK6: 0 | AL6: 0 | AM6: 0 | AN6: 0 | AO6: 0 | AP6: 0 | AQ6: 0 | AR6: 0 | AS6: 0 | AT6: 0 | AU6: 0 | AV6: 0 | AW6: 0 | AX6: 0
A7: 합계 | B7: 1 | C7: 4 | D7: 2 | E7: 2 | F7: 0 | G7: 0 | H7: 0 | I7: 0 | J7: 0 | K7: 0 | L7: 1 | M7: 0 | N7: 1 | O7: 0 | P7: 0 | Q7: 0 | R7: 0 | S7: 0 | T7: 0 | U7: 3 | V7: 2 | W7: 1 | X7: 0 | Y7: 0 | Z7: 0 | AA7: 0 | AB7: 0 | AC7: 0 | AD7: 0 | AE7: 0 | AF7: 0 | AG7: 0 | AH7: 0 | AI7: 0 | AJ7: 0 | AK7: 0 | AL7: 0 | AM7: 0 | AN7: 0 | AO7: 0 | AP7: 0 | AQ7: 0 | AR7: 0 | AS7: 0 | AT7: 0 | AU7: 0 | AV7: 0 | AW7: 0 | AX7: 0
B8: 2 | C8: 6 | D8: 1 | E8: 5 | F8: 0 | G8: 0 | H8: 0 | I8: 0 | J8: 0 | K8: 0 | L8: 1 | M8: 0 | N8: 1 | O8: 0 | P8: 0 | Q8: 0 | R8: 1 | S8: 0 | T8: 1 | U8: 3 | V8: 0 | W8: 3 | X8: 0 | Y8: 0 | Z8: 0 | AA8: 0 | AB8: 0 | AC8: 0 | AD8: 1 | AE8: 1 | AF8: 0 | AG8: 0 | AH8: 0 | AI8: 0 | AJ8: 0 | AK8: 0 | AL8: 0 | AM8: 0 | AN8: 0 | AO8: 0 | AP8: 0 | AQ8: 0 | AR8: 0 | AS8: 0 | AT8: 0 | AU8: 0 | AV8: 0 | AW8: 0 | AX8: 0
B9: 3 | C9: 9 | D9: 5 | E9: 4 | F9: 0 | G9: 0 | H9: 0 | I9: 0 | J9: 0 | K9: 0 | L9: 1 | M9: 1 | N9: 0 | O9: 0 | P9: 0 | Q9: 0 | R9: 0 | S9: 0 | T9: 0 | U9: 8 | V9: 4 | W9: 4 | X9: 0 | Y9: 0 | Z9: 0 | AA9: 0 | AB9: 0 | AC9: 0 | AD9: 0 | AE9: 0 | AF9: 0 | AG9: 0 | AH9: 0 | AI9: 0 | AJ9: 0 | AK9: 0 | AL9: 0 | AM9: 0 | AN9: 0 | AO9: 0 | AP9: 0 | AQ9: 0 | AR9: 0 | AS9: 0 | AT9: 0 | AU9: 0 | AV9: 0 | AW9: 0 | AX9: 0
B10: 4 | C10: 15 | D10: 9 | E10: 6 | F10: 1 | G10: 1 | H10: 0 | I10: 1 | J10: 1 | K10: 0 | L10: 1 | M10: 1 | N10: 0 | O10: 1 | P10: 1 | Q10: 0 | R10: 6 | S10: 3 | T10: 3 | U10: 4 | V10: 1 | W10: 3 | X10: 1 | Y10: 1 | Z10: 0 | AA10: 0 | AB10: 0 | AC10: 0 | AD10: 0 | AE10: 0 | AF10: 0 | AG10: 0 | AH10: 0 | AI10: 0 | AJ10: 0 | AK10: 0 | AL10: 0 | AM10: 0 | AN10: 0 | AO10: 0 | AP10: 0 | AQ10: 0 | AR10: 0 | AS10: 0 | AT10: 0 | AU10: 0 | AV10: 0 | AW10: 0 | AX10: 0
B11: 5 | C11: 46 | D11: 24 | E11: 22 | F11: 1 | G11: 0 | H11: 1 | I11: 1 | J11: 1 | K11: 0 | L11: 4 | M11: 1 | N11: 3 | O11: 4 | P11: 1 | Q11: 3 | R11: 3 | S11: 2 | T11: 1 | U11: 9 | V11: 4 | W11: 5 | X11: 21 | Y11: 14 | Z11: 7 | AA11: 0 | AB11: 0 | AC11: 0 | AD11: 0 | AE11: 0 | AF11: 0 | AG11: 0 | AH11: 0 | AI11: 0 | AJ11: 0 | AK11: 0 | AL11: 0 | AM11: 0 | AN11: 0 | AO11: 0 | AP11: 0 | AQ11: 0 | AR11: 0 | AS11: 1 | AT11: 0 | AU11: 1 | AV11: 2 | AW11: 1 | AX11: 1
B12: 6 | C12: 46 | D12: 31 | E12: 15 | F12: 1 | G12: 0 | H12: 1 | I12: 0 | J12: 0 | K12: 0 | L12: 0 | M12: 0 | N12: 0 | O12: 3 | P12: 2 | Q12: 1 | R12: 9 | S12: 5 | T12: 4 | U12: 8 | V12: 3 | W12: 5 | X12: 25 | Y12: 21 | Z12: 4 | AA12: 0 | AB12: 0 | AC12: 0 | AD12: 0 | AE12: 0 | AF12: 0 | AG12: 0 | AH12: 0 | AI12: 0 | AJ12: 0 | AK12: 0 | AL12: 0 | AM12: 0 | AN12: 0 | AO12: 0 | AP12: 0 | AQ12: 0 | AR12: 0 | AS12: 0 | AT12: 0 | AU12: 0 | AV12: 0 | AW12: 0 | AX12: 0
B13: 7 | C13: 58 | D13: 39 | E13: 19 | F13: 0 | G13: 0 | H13: 0 | I13: 0 | J13: 0 | K13: 0 | L13: 1 | M13: 0 | N13: 1 | O13: 3 | P13: 3 | Q13: 0 | R13: 13 | S13: 9 | T13: 4 | U13: 10 | V13: 4 | W13: 6 | X13: 31 | Y13: 23 | Z13: 8 | AA13: 0 | AB13: 0 | AC13: 0 | AD13: 0 | AE13: 0 | AF13: 0 | AG13: 0 | AH13: 0 | AI13: 0 | AJ13: 0 | AK13: 0 | AL13: 0 | AM13: 0 | AN13: 0 | AO13: 0 | AP13: 0 | AQ13: 0 | AR13: 0 | AS13: 0 | AT13: 0 | AU13: 0 | AV13: 0 | AW13: 0 | AX13: 0
B14: 8 | C14: 67 | D14: 50 | E14: 17 | F14: 0 | G14: 0 | H14: 0 | I14: 1 | J14: 0 | K14: 1 | L14: 3 | M14: 1 | N14: 2 | O14: 4 | P14: 2 | Q14: 2 | R14: 19 | S14: 15 | T14: 4 | U14: 4 | V14: 2 | W14: 2 | X14: 35 | Y14: 29 | Z14: 6 | AA14: 0 | AB14: 0 | AC14: 0 | AD14: 0 | AE14: 0 | AF14: 0 | AG14: 0 | AH14: 0 | AI14: 0 | AJ14: 0 | AK14: 0 | AL14: 0 | AM14: 0 | AN14: 0 | AO14: 0 | AP14: 0 | AQ14: 0 | AR14: 0 | AS14: 1 | AT14: 1 | AU14: 0 | AV14: 0 | AW14: 0 | AX14: 0
B15: 9 | C15: 53 | D15: 40 | E15: 13 | F15: 0 | G15: 0 | H15: 0 | I15: 1 | J15: 1 | K15: 0 | L15: 2 | M15: 1 | N15: 1 | O15: 1 | P15: 1 | Q15: 0 | R15: 18 | S15: 13 | T15: 5 | U15: 3 | V15: 2 | W15: 1 | X15: 28 | Y15: 22 | Z15: 6 | AA15: 0 | AB15: 0 | AC15: 0 | AD15: 0 | AE15: 0 | AF15: 0 | AG15: 0 | AH15: 0 | AI15: 0 | AJ15: 0 | AK15: 0 | AL15: 0 | AM15: 0 | AN15: 0 | AO15: 0 | AP15: 0 | AQ15: 0 | AR15: 0 | AS15: 0 | AT15: 0 | AU15: 0 | AV15: 0 | AW15: 0 | AX15: 0
B16: 10 | C16: 67 | D16: 47 | E16: 20 | F16: 0 | G16: 0 | H16: 0 | I16: 0 | J16: 0 | K16: 0 | L16: 4 | M16: 0 | N16: 4 | O16: 0 | P16: 0 | Q16: 0 | R16: 26 | S16: 19 | T16: 7 | U16: 12 | V16: 8 | W16: 4 | X16: 25 | Y16: 20 | Z16: 5 | AA16: 0 | AB16: 0 | AC16: 0 | AD16: 0 | AE16: 0 | AF16: 0 | AG16: 0 | AH16: 0 | AI16: 0 | AJ16: 0 | AK16: 0 | AL16: 0 | AM16: 0 | AN16: 0 | AO16: 0 | AP16: 0 | AQ16: 0 | AR16: 0 | AS16: 0 | AT16: 0 | AU16: 0 | AV16: 0 | AW16: 0 | AX16: 0
B17: 11 | C17: 51 | D17: 29 | E17: 22 | F17: 0 | G17: 0 | H17: 0 | I17: 1 | J17: 0 | K17: 1 | L17: 3 | M17: 1 | N17: 2 | O17: 1 | P17: 1 | Q17: 0 | R17: 26 | S17: 13 | T17: 13 | U17: 4 | V17: 1 | W17: 3 | X17: 14 | Y17: 11 | Z17: 3 | AA17: 0 | AB17: 0 | AC17: 0 | AD17: 0 | AE17: 0 | AF17: 0 | AG17: 1 | AH17: 1 | AI17: 0 | AJ17: 0 | AK17: 0 | AL17: 0 | AM17: 1 | AN17: 1 | AO17: 0 | AP17: 0 | AQ17: 0 | AR17: 0 | AS17: 0 | AT17: 0 | AU17: 0 | AV17: 0 | AW17: 0 | AX17: 0
B18: 12 | C18: 69 | D18: 42 | E18: 27 | F18: 1 | G18: 0 | H18: 1 | I18: 2 | J18: 2 | K18: 0 | L18: 1 | M18: 0 | N18: 1 | O18: 1 | P18: 1 | Q18: 0 | R18: 26 | S18: 15 | T18: 11 | U18: 13 | V18: 4 | W18: 9 | X18: 25 | Y18: 20 | Z18: 5 | AA18: 0 | AB18: 0 | AC18: 0 | AD18: 0 | AE18: 0 | AF18: 0 | AG18: 0 | AH18: 0 | AI18: 0 | AJ18: 0 | AK18: 0 | AL18: 0 | AM18: 0 | AN18: 0 | AO18: 0 | AP18: 0 | AQ18: 0 | AR18: 0 | AS18: 0 | AT18: 0 | AU18: 0 | AV18: 0 | AW18: 0 | AX18: 0
B19: 13 | C19: 62 | D19: 41 | E19: 21 | F19: 3 | G19: 2 | H19: 1 | I19: 3 | J19: 1 | K19: 2 | L19: 3 | M19: 1 | N19: 2 | O19: 0 | P19: 0 | Q19: 0 | R19: 28 | S19: 17 | T19: 11 | U19: 7 | V19: 4 | W19: 3 | X19: 18 | Y19: 16 | Z19: 2 | AA19: 0 | AB19: 0 | AC19: 0 | AD19: 0 | AE19: 0 | AF19: 0 | AG19: 0 | AH19: 0 | AI19: 0 | AJ19: 0 | AK19: 0 | AL19: 0 | AM19: 0 | AN19: 0 | AO19: 0 | AP19: 0 | AQ19: 0 | AR19: 0 | AS19: 0 | AT19: 0 | AU19: 0 | AV19: 0 | AW19: 0 | AX19: 0
B20: 14 | C20: 70 | D20: 51 | E20: 19 | F20: 2 | G20: 2 | H20: 0 | I20: 0 | J20: 0 | K20: 0 | L20: 0 | M20: 0 | N20: 0 | O20: 2 | P20: 2 | Q20: 0 | R20: 29 | S20: 18 | T20: 11 | U20: 8 | V20: 6 | W20: 2 | X20: 29 | Y20: 23 | Z20: 6 | AA20: 0 | AB20: 0 | AC20: 0 | AD20: 0 | AE20: 0 | AF20: 0 | AG20: 0 | AH20: 0 | AI20: 0 | AJ20: 0 | AK20: 0 | AL20: 0 | AM20: 0 | AN20: 0 | AO20: 0 | AP20: 0 | AQ20: 0 | AR20: 0 | AS20: 0 | AT20: 0 | AU20: 0 | AV20: 0 | AW20: 0 | AX20: 0
B21: 15 | C21: 52 | D21: 32 | E21: 20 | F21: 2 | G21: 1 | H21: 1 | I21: 2 | J21: 1 | K21: 1 | L21: 0 | M21: 0 | N21: 0 | O21: 0 | P21: 0 | Q21: 0 | R21: 22 | S21: 11 | T21: 11 | U21: 4 | V21: 3 | W21: 1 | X21: 21 | Y21: 16 | Z21: 5 | AA21: 0 | AB21: 0 | AC21: 0 | AD21: 0 | AE21: 0 | AF21: 0 | AG21: 0 | AH21: 0 | AI21: 0 | AJ21: 0 | AK21: 0 | AL21: 0 | AM21: 0 | AN21: 0 | AO21: 0 | AP21: 0 | AQ21: 0 | AR21: 0 | AS21: 1 | AT21: 0 | AU21: 1 | AV21: 0 | AW21: 0 | AX21: 0
B22: 16 | C22: 61 | D22: 43 | E22: 18 | F22: 3 | G22: 3 | H22: 0 | I22: 2 | J22: 0 | K22: 2 | L22: 2 | M22: 1 | N22: 1 | O22: 0 | P22: 0 | Q22: 0 | R22: 38 | S22: 27 | T22: 11 | U22: 5 | V22: 4 | W22: 1 | X22: 9 | Y22: 6 | Z22: 3 | AA22: 0 | AB22: 0 | AC22: 0 | AD22: 0 | AE22: 0 | AF22: 0 | AG22: 1 | AH22: 1 | AI22: 0 | AJ22: 0 | AK22: 0 | AL22: 0 | AM22: 1 | AN22: 1 | AO22: 0 | AP22: 0 | AQ22: 0 | AR22: 0 | AS22: 0 | AT22: 0 | AU22: 0 | AV22: 0 | AW22: 0 | AX22: 0
B23: 17 | C23: 52 | D23: 36 | E23: 16 | F23: 2 | G23: 0 | H23: 2 | I23: 1 | J23: 0 | K23: 1 | L23: 0 | M23: 0 | N23: 0 | O23: 0 | P23: 0 | Q23: 0 | R23: 32 | S23: 22 | T23: 10 | U23: 7 | V23: 4 | W23: 3 | X23: 10 | Y23: 10 | Z23: 0 | AA23: 0 | AB23: 0 | AC23: 0 | AD23: 0 | AE23: 0 | AF23: 0 | AG23: 0 | AH23: 0 | AI23: 0 | AJ23: 0 | AK23: 0 | AL23: 0 | AM23: 0 | AN23: 0 | AO23: 0 | AP23: 0 | AQ23: 0 | AR23: 0 | AS23: 0 | AT23: 0 | AU23: 0 | AV23: 0 | AW23: 0 | AX23: 0
B24: 18 | C24: 50 | D24: 34 | E24: 16 | F24: 4 | G24: 2 | H24: 2 | I24: 2 | J24: 2 | K24: 0 | L24: 1 | M24: 1 | N24: 0 | O24: 0 | P24: 0 | Q24: 0 | R24: 28 | S24: 20 | T24: 8 | U24: 5 | V24: 2 | W24: 3 | X24: 8 | Y24: 6 | Z24: 2 | AA24: 0 | AB24: 0 | AC24: 0 | AD24: 0 | AE24: 0 | AF24: 0 | AG24: 0 | AH24: 0 | AI24: 0 | AJ24: 0 | AK24: 0 | AL24: 0 | AM24: 2 | AN24: 1 | AO24: 1 | AP24: 0 | AQ24: 0 | AR24: 0 | AS24: 0 | AT24: 0 | AU24: 0 | AV24: 0 | AW24: 0 | AX24: 0
B25: 19 | C25: 43 | D25: 26 | E25: 17 | F25: 3 | G25: 1 | H25: 2 | I25: 1 | J25: 1 | K25: 0 | L25: 2 | M25: 0 | N25: 2 | O25: 0 | P25: 0 | Q25: 0 | R25: 29 | S25: 19 | T25: 10 | U25: 2 | V25: 0 | W25: 2 | X25: 6 | Y25: 5 | Z25: 1 | AA25: 0 | AB25: 0 | AC25: 0 | AD25: 0 | AE25: 0 | AF25: 0 | AG25: 0 | AH25: 0 | AI25: 0 | AJ25: 0 | AK25: 0 | AL25: 0 | AM25: 0 | AN25: 0 | AO25: 0 | AP25: 0 | AQ25: 0 | AR25: 0 | AS25: 0 | AT25: 0 | AU25: 0 | AV25: 0 | AW25: 0 | AX25: 0
B26: 20 | C26: 59 | D26: 38 | E26: 21 | F26: 4 | G26: 2 | H26: 2 | I26: 2 | J26: 0 | K26: 2 | L26: 3 | M26: 1 | N26: 2 | O26: 0 | P26: 0 | Q26: 0 | R26: 36 | S26: 22 | T26: 14 | U26: 6 | V26: 5 | W26: 1 | X26: 8 | Y26: 8 | Z26: 0 | AA26: 0 | AB26: 0 | AC26: 0 | AD26: 0 | AE26: 0 | AF26: 0 | AG26: 0 | AH26: 0 | AI26: 0 | AJ26: 0 | AK26: 0 | AL26: 0 | AM26: 0 | AN26: 0 | AO26: 0 | AP26: 0 | AQ26: 0 | AR26: 0 | AS26: 0 | AT26: 0 | AU26: 0 | AV26: 0 | AW26: 0 | AX26: 0
B27: 21 | C27: 75 | D27: 50 | E27: 25 | F27: 4 | G27: 4 | H27: 0 | I27: 1 | J27: 1 | K27: 0 | L27: 3 | M27: 1 | N27: 2 | O27: 2 | P27: 2 | Q27: 0 | R27: 44 | S27: 27 | T27: 17 | U27: 10 | V27: 5 | W27: 5 | X27: 8 | Y27: 8 | Z27: 0 | AA27: 0 | AB27: 0 | AC27: 0 | AD27: 2 | AE27: 1 | AF27: 1 | AG27: 0 | AH27: 0 | AI27: 0 | AJ27: 0 | AK27: 0 | AL27: 0 | AM27: 1 | AN27: 1 | AO27: 0 | AP27: 0 | AQ27: 0 | AR27: 0 | AS27: 0 | AT27: 0 | AU27: 0 | AV27: 0 | AW27: 0 | AX27: 0
B28: 22 | C28: 67 | D28: 38 | E28: 29 | F28: 7 | G28: 3 | H28: 4 | I28: 2 | J28: 2 | K28: 0 | L28: 1 | M28: 0 | N28: 1 | O28: 0 | P28: 0 | Q28: 0 | R28: 39 | S28: 22 | T28: 17 | U28: 5 | V28: 1 | W28: 4 | X28: 7 | Y28: 7 | Z28: 0 | AA28: 0 | AB28: 0 | AC28: 0 | AD28: 0 | AE28: 0 | AF28: 0 | AG28: 3 | AH28: 3 | AI28: 0 | AJ28: 0 | AK28: 0 | AL28: 0 | AM28: 3 | AN28: 0 | AO28: 3 | AP28: 0 | AQ28: 0 | AR28: 0 | AS28: 0 | AT28: 0 | AU28: 0 | AV28: 0 | AW28: 0 | AX28: 0
B29: 23 | C29: 78 | D29: 47 | E29: 31 | F29: 3 | G29: 0 | H29: 3 | I29: 5 | J29: 2 | K29: 3 | L29: 7 | M29: 4 | N29: 3 | O29: 0 | P29: 0 | Q29: 0 | R29: 48 | S29: 31 | T29: 17 | U29: 1 | V29: 1 | W29: 0 | X29: 9 | Y29: 8 | Z29: 1 | AA29: 3 | AB29: 1 | AC29: 2 | AD29: 0 | AE29: 0 | AF29: 0 | AG29: 1 | AH29: 0 | AI29: 1 | AJ29: 0 | AK29: 0 | AL29: 0 | AM29: 1 | AN29: 0 | AO29: 1 | AP29: 0 | AQ29: 0 | AR29: 0 | AS29: 0 | AT29: 0 | AU29: 0 | AV29: 0 | AW29: 0 | AX29: 0
B30: 24 | C30: 87 | D30: 57 | E30: 30 | F30: 13 | G30: 5 | H30: 8 | I30: 5 | J30: 2 | K30: 3 | L30: 3 | M30: 2 | N30: 1 | O30: 0 | P30: 0 | Q30: 0 | R30: 38 | S30: 27 | T30: 11 | U30: 7 | V30: 6 | W30: 1 | X30: 15 | Y30: 12 | Z30: 3 | AA30: 3 | AB30: 2 | AC30: 1 | AD30: 1 | AE30: 0 | AF30: 1 | AG30: 0 | AH30: 0 | AI30: 0 | AJ30: 1 | AK30: 1 | AL30: 0 | AM30: 1 | AN30: 0 | AO30: 1 | AP30: 0 | AQ30: 0 | AR30: 0 | AS30: 0 | AT30: 0 | AU30: 0 | AV30: 0 | AW30: 0 | AX30: 0
B31: 25 | C31: 90 | D31: 58 | E31: 32 | F31: 5 | G31: 2 | H31: 3 | I31: 5 | J31: 3 | K31: 2 | L31: 9 | M31: 6 | N31: 3 | O31: 0 | P31: 0 | Q31: 0 | R31: 39 | S31: 24 | T31: 15 | U31: 5 | V31: 3 | W31: 2 | X31: 16 | Y31: 14 | Z31: 2 | AA31: 4 | AB31: 3 | AC31: 1 | AD31: 0 | AE31: 0 | AF31: 0 | AG31: 3 | AH31: 1 | AI31: 2 | AJ31: 0 | AK31: 0 | AL31: 0 | AM31: 3 | AN31: 2 | AO31: 1 | AP31: 0 | AQ31: 0 | AR31: 0 | AS31: 0 | AT31: 0 | AU31: 0 | AV31: 1 | AW31: 0 | AX31: 1
B32: 26 | C32: 86 | D32: 55 | E32: 31 | F32: 5 | G32: 3 | H32: 2 | I32: 7 | J32: 5 | K32: 2 | L32: 4 | M32: 0 | N32: 4 | O32: 0 | P32: 0 | Q32: 0 | R32: 43 | S32: 28 | T32: 15 | U32: 10 | V32: 7 | W32: 3 | X32: 11 | Y32: 10 | Z32: 1 | AA32: 3 | AB32: 1 | AC32: 2 | AD32: 1 | AE32: 0 | AF32: 1 | AG32: 0 | AH32: 0 | AI32: 0 | AJ32: 0 | AK32: 0 | AL32: 0 | AM32: 1 | AN32: 0 | AO32: 1 | AP32: 0 | AQ32: 0 | AR32: 0 | AS32: 0 | AT32: 0 | AU32: 0 | AV32: 1 | AW32: 1 | AX32: 0
B33: 27 | C33: 103 | D33: 60 | E33: 43 | F33: 14 | G33: 6 | H33: 8 | I33: 10 | J33: 5 | K33: 5 | L33: 8 | M33: 3 | N33: 5 | O33: 3 | P33: 3 | Q33: 0 | R33: 48 | S33: 30 | T33: 18 | U33: 6 | V33: 3 | W33: 3 | X33: 7 | Y33: 6 | Z33: 1 | AA33: 6 | AB33: 3 | AC33: 3 | AD33: 1 | AE33: 1 | AF33: 0 | AG33: 0 | AH33: 0 | AI33: 0 | AJ33: 0 | AK33: 0 | AL33: 0 | AM33: 0 | AN33: 0 | AO33: 0 | AP33: 0 | AQ33: 0 | AR33: 0 | AS33: 0 | AT33: 0 | AU33: 0 | AV33: 0 | AW33: 0 | AX33: 0
B34: 28 | C34: 117 | D34: 69 | E34: 48 | F34: 14 | G34: 5 | H34: 9 | I34: 13 | J34: 9 | K34: 4 | L34: 8 | M34: 4 | N34: 4 | O34: 1 | P34: 1 | Q34: 0 | R34: 53 | S34: 31 | T34: 22 | U34: 7 | V34: 4 | W34: 3 | X34: 13 | Y34: 10 | Z34: 3 | AA34: 6 | AB34: 4 | AC34: 2 | AD34: 0 | AE34: 0 | AF34: 0 | AG34: 0 | AH34: 0 | AI34: 0 | AJ34: 0 | AK34: 0 | AL34: 0 | AM34: 1 | AN34: 1 | AO34: 0 | AP34: 0 | AQ34: 0 | AR34: 0 | AS34: 0 | AT34: 0 | AU34: 0 | AV34: 1 | AW34: 0 | AX34: 1
B35: 29 | C35: 99 | D35: 68 | E35: 31 | F35: 11 | G35: 7 | H35: 4 | I35: 9 | J35: 8 | K35: 1 | L35: 3 | M35: 2 | N35: 1 | O35: 0 | P35: 0 | Q35: 0 | R35: 48 | S35: 32 | T35: 16 | U35: 6 | V35: 4 | W35: 2 | X35: 8 | Y35: 7 | Z35: 1 | AA35: 7 | AB35: 5 | AC35: 2 | AD35: 5 | AE35: 2 | AF35: 3 | AG35: 0 | AH35: 0 | AI35: 0 | AJ35: 0 | AK35: 0 | AL35: 0 | AM35: 0 | AN35: 0 | AO35: 0 | AP35: 0 | AQ35: 0 | AR35: 0 | AS35: 1 | AT35: 1 | AU35: 0 | AV35: 1 | AW35: 0 | AX35: 1
B36: 30 | C36: 106 | D36: 67 | E36: 39 | F36: 14 | G36: 9 | H36: 5 | I36: 8 | J36: 6 | K36: 2 | L36: 6 | M36: 3 | N36: 3 | O36: 0 | P36: 0 | Q36: 0 | R36: 44 | S36: 25 | T36: 19 | U36: 12 | V36: 5 | W36: 7 | X36: 13 | Y36: 13 | Z36: 0 | AA36: 5 | AB36: 4 | AC36: 1 | AD36: 2 | AE36: 1 | AF36: 1 | AG36: 0 | AH36: 0 | AI36: 0 | AJ36: 0 | AK36: 0 | AL36: 0 | AM36: 0 | AN36: 0 | AO36: 0 | AP36: 1 | AQ36: 0 | AR36: 1 | AS36: 0 | AT36: 0 | AU36: 0 | AV36: 1 | AW36: 1 | AX36: 0
B37: 31 | C37: 96 | D37: 60 | E37: 36 | F37: 11 | G37: 7 | H37: 4 | I37: 7 | J37: 4 | K37: 3 | L37: 3 | M37: 2 | N37: 1 | O37: 1 | P37: 0 | Q37: 1 | R37: 56 | S37: 35 | T37: 21 | U37: 7 | V37: 5 | W37: 2 | X37: 7 | Y37: 6 | Z37: 1 | AA37: 3 | AB37: 0 | AC37: 3 | AD37: 1 | AE37: 1 | AF37: 0 | AG37: 0 | AH37: 0 | AI37: 0 | AJ37: 0 | AK37: 0 | AL37: 0 | AM37: 0 | AN37: 0 | AO37: 0 | AP37: 0 | AQ37: 0 | AR37: 0 | AS37: 0 | AT37: 0 | AU37: 0 | AV37: 0 | AW37: 0 | AX37: 0
B38: 32 | C38: 120 | D38: 74 | E38: 46 | F38: 15 | G38: 9 | H38: 6 | I38: 16 | J38: 11 | K38: 5 | L38: 6 | M38: 2 | N38: 4 | O38: 1 | P38: 1 | Q38: 0 | R38: 50 | S38: 30 | T38: 20 | U38: 10 | V38: 6 | W38: 4 | X38: 7 | Y38: 6 | Z38: 1 | AA38: 8 | AB38: 5 | AC38: 3 | AD38: 5 | AE38: 3 | AF38: 2 | AG38: 0 | AH38: 0 | AI38: 0 | AJ38: 0 | AK38: 0 | AL38: 0 | AM38: 0 | AN38: 0 | AO38: 0 | AP38: 1 | AQ38: 1 | AR38: 0 | AS38: 1 | AT38: 0 | AU38: 1 | AV38: 0 | AW38: 0 | AX38: 0
B39: 33 | C39: 125 | D39: 83 | E39: 42 | F39: 22 | G39: 14 | H39: 8 | I39: 8 | J39: 6 | K39: 2 | L39: 9 | M39: 6 | N39: 3 | O39: 1 | P39: 0 | Q39: 1 | R39: 46 | S39: 33 | T39: 13 | U39: 13 | V39: 9 | W39: 4 | X39: 9 | Y39: 8 | Z39: 1 | AA39: 7 | AB39: 5 | AC39: 2 | AD39: 5 | AE39: 2 | AF39: 3 | AG39: 5 | AH39: 0 | AI39: 5 | AJ39: 0 | AK39: 0 | AL39: 0 | AM39: 0 | AN39: 0 | AO39: 0 | AP39: 0 | AQ39: 0 | AR39: 0 | AS39: 0 | AT39: 0 | AU39: 0 | AV39: 0 | AW39: 0 | AX39: 0
B40: 34 | C40: 99 | D40: 68 | E40: 31 | F40: 15 | G40: 9 | H40: 6 | I40: 13 | J40: 10 | K40: 3 | L40: 5 | M40: 2 | N40: 3 | O40: 0 | P40: 0 | Q40: 0 | R40: 39 | S40: 27 | T40: 12 | U40: 5 | V40: 3 | W40: 2 | X40: 10 | Y40: 10 | Z40: 0 | AA40: 8 | AB40: 4 | AC40: 4 | AD40: 3 | AE40: 2 | AF40: 1 | AG40: 0 | AH40: 0 | AI40: 0 | AJ40: 0 | AK40: 0 | AL40: 0 | AM40: 0 | AN40: 0 | AO40: 0 | AP40: 0 | AQ40: 0 | AR40: 0 | AS40: 0 | AT40: 0 | AU40: 0 | AV40: 1 | AW40: 1 | AX40: 0
B41: 35 | C41: 84 | D41: 57 | E41: 27 | F41: 14 | G41: 10 | H41: 4 | I41: 12 | J41: 10 | K41: 2 | L41: 5 | M41: 0 | N41: 5 | O41: 0 | P41: 0 | Q41: 0 | R41: 26 | S41: 21 | T41: 5 | U41: 8 | V41: 7 | W41: 1 | X41: 4 | Y41: 2 | Z41: 2 | AA41: 12 | AB41: 5 | AC41: 7 | AD41: 2 | AE41: 2 | AF41: 0 | AG41: 0 | AH41: 0 | AI41: 0 | AJ41: 1 | AK41: 0 | AL41: 1 | AM41: 0 | AN41: 0 | AO41: 0 | AP41: 0 | AQ41: 0 | AR41: 0 | AS41: 0 | AT41: 0 | AU41: 0 | AV41: 0 | AW41: 0 | AX41: 0
B42: 36 | C42: 100 | D42: 65 | E42: 35 | F42: 30 | G42: 22 | H42: 8 | I42: 8 | J42: 2 | K42: 6 | L42: 4 | M42: 3 | N42: 1 | O42: 1 | P42: 0 | Q42: 1 | R42: 34 | S42: 25 | T42: 9 | U42: 10 | V42: 4 | W42: 6 | X42: 5 | Y42: 5 | Z42: 0 | AA42: 5 | AB42: 2 | AC42: 3 | AD42: 2 | AE42: 1 | AF42: 1 | AG42: 0 | AH42: 0 | AI42: 0 | AJ42: 0 | AK42: 0 | AL42: 0 | AM42: 1 | AN42: 1 | AO42: 0 | AP42: 0 | AQ42: 0 | AR42: 0 | AS42: 0 | AT42: 0 | AU42: 0 | AV42: 0 | AW42: 0 | AX42: 0
B43: 37 | C43: 110 | D43: 71 | E43: 39 | F43: 25 | G43: 16 | H43: 9 | I43: 11 | J43: 8 | K43: 3 | L43: 3 | M43: 1 | N43: 2 | O43: 0 | P43: 0 | Q43: 0 | R43: 35 | S43: 22 | T43: 13 | U43: 9 | V43: 8 | W43: 1 | X43: 9 | Y43: 9 | Z43: 0 | AA43: 8 | AB43: 4 | AC43: 4 | AD43: 5 | AE43: 2 | AF43: 3 | AG43: 1 | AH43: 0 | AI43: 1 | AJ43: 0 | AK43: 0 | AL43: 0 | AM43: 0 | AN43: 0 | AO43: 0 | AP43: 0 | AQ43: 0 | AR43: 0 | AS43: 2 | AT43: 1 | AU43: 1 | AV43: 2 | AW43: 0 | AX43: 2
B44: 38 | C44: 103 | D44: 61 | E44: 42 | F44: 28 | G44: 13 | H44: 15 | I44: 16 | J44: 10 | K44: 6 | L44: 5 | M44: 3 | N44: 2 | O44: 0 | P44: 0 | Q44: 0 | R44: 25 | S44: 14 | T44: 11 | U44: 10 | V44: 8 | W44: 2 | X44: 3 | Y44: 3 | Z44: 0 | AA44: 9 | AB44: 7 | AC44: 2 | AD44: 4 | AE44: 2 | AF44: 2 | AG44: 0 | AH44: 0 | AI44: 0 | AJ44: 1 | AK44: 0 | AL44: 1 | AM44: 0 | AN44: 0 | AO44: 0 | AP44: 1 | AQ44: 1 | AR44: 0 | AS44: 0 | AT44: 0 | AU44: 0 | AV44: 1 | AW44: 0 | AX44: 1
B45: 39 | C45: 103 | D45: 68 | E45: 35 | F45: 28 | G45: 20 | H45: 8 | I45: 19 | J45: 12 | K45: 7 | L45: 2 | M45: 2 | N45: 0 | O45: 1 | P45: 1 | Q45: 0 | R45: 25 | S45: 16 | T45: 9 | U45: 6 | V45: 4 | W45: 2 | X45: 4 | Y45: 4 | Z45: 0 | AA45: 12 | AB45: 7 | AC45: 5 | AD45: 4 | AE45: 2 | AF45: 2 | AG45: 0 | AH45: 0 | AI45: 0 | AJ45: 0 | AK45: 0 | AL45: 0 | AM45: 1 | AN45: 0 | AO45: 1 | AP45: 0 | AQ45: 0 | AR45: 0 | AS45: 1 | AT45: 0 | AU45: 1 | AV45: 0 | AW45: 0 | AX45: 0
B46: 40 | C46: 104 | D46: 58 | E46: 46 | F46: 30 | G46: 17 | H46: 13 | I46: 6 | J46: 3 | K46: 3 | L46: 2 | M46: 1 | N46: 1 | O46: 1 | P46: 0 | Q46: 1 | R46: 21 | S46: 14 | T46: 7 | U46: 15 | V46: 9 | W46: 6 | X46: 2 | Y46: 1 | Z46: 1 | AA46: 16 | AB46: 8 | AC46: 8 | AD46: 7 | AE46: 3 | AF46: 4 | AG46: 0 | AH46: 0 | AI46: 0 | AJ46: 0 | AK46: 0 | AL46: 0 | AM46: 1 | AN46: 1 | AO46: 0 | AP46: 0 | AQ46: 0 | AR46: 0 | AS46: 0 | AT46: 0 | AU46: 0 | AV46: 3 | AW46: 1 | AX46: 2
A47: 합계 | B47: 41 | C47: 119 | D47: 87 | E47: 32 | F47: 39 | G47: 36 | H47: 3 | I47: 14 | J47: 10 | K47: 4 | L47: 3 | M47: 2 | N47: 1 | O47: 0 | P47: 0 | Q47: 0 | R47: 30 | S47: 17 | T47: 13 | U47: 13 | V47: 8 | W47: 5 | X47: 1 | Y47: 0 | Z47: 1 | AA47: 11 | AB47: 8 | AC47: 3 | AD47: 2 | AE47: 0 | AF47: 2 | AG47: 1 | AH47: 1 | AI47: 0 | AJ47: 1 | AK47: 1 | AL47: 0 | AM47: 0 | AN47: 0 | AO47: 0 | AP47: 0 | AQ47: 0 | AR47: 0 | AS47: 2 | AT47: 2 | AU47: 0 | AV47: 2 | AW47: 2 | AX47: 0
B48: 42 | C48: 136 | D48: 89 | E48: 47 | F48: 49 | G48: 39 | H48: 10 | I48: 17 | J48: 14 | K48: 3 | L48: 3 | M48: 0 | N48: 3 | O48: 0 | P48: 0 | Q48: 0 | R48: 26 | S48: 16 | T48: 10 | U48: 11 | V48: 6 | W48: 5 | X48: 1 | Y48: 1 | Z48: 0 | AA48: 17 | AB48: 8 | AC48: 9 | AD48: 9 | AE48: 4 | AF48: 5 | AG48: 1 | AH48: 1 | AI48: 0 | AJ48: 0 | AK48: 0 | AL48: 0 | AM48: 1 | AN48: 0 | AO48: 1 | AP48: 0 | AQ48: 0 | AR48: 0 | AS48: 0 | AT48: 0 | AU48: 0 | AV48: 1 | AW48: 0 | AX48: 1
B49: 43 | C49: 153 | D49: 107 | E49: 46 | F49: 46 | G49: 40 | H49: 6 | I49: 25 | J49: 19 | K49: 6 | L49: 10 | M49: 5 | N49: 5 | O49: 2 | P49: 0 | Q49: 2 | R49: 33 | S49: 22 | T49: 11 | U49: 12 | V49: 8 | W49: 4 | X49: 2 | Y49: 1 | Z49: 1 | AA49: 17 | AB49: 9 | AC49: 8 | AD49: 4 | AE49: 2 | AF49: 2 | AG49: 0 | AH49: 0 | AI49: 0 | AJ49: 0 | AK49: 0 | AL49: 0 | AM49: 0 | AN49: 0 | AO49: 0 | AP49: 0 | AQ49: 0 | AR49: 0 | AS49: 0 | AT49: 0 | AU49: 0 | AV49: 2 | AW49: 1 | AX49: 1
B50: 44 | C50: 150 | D50: 101 | E50: 49 | F50: 50 | G50: 33 | H50: 17 | I50: 16 | J50: 12 | K50: 4 | L50: 8 | M50: 5 | N50: 3 | O50: 0 | P50: 0 | Q50: 0 | R50: 36 | S50: 25 | T50: 11 | U50: 15 | V50: 10 | W50: 5 | X50: 2 | Y50: 2 | Z50: 0 | AA50: 10 | AB50: 7 | AC50: 3 | AD50: 11 | AE50: 7 | AF50: 4 | AG50: 0 | AH50: 0 | AI50: 0 | AJ50: 1 | AK50: 0 | AL50: 1 | AM50: 0 | AN50: 0 | AO50: 0 | AP50: 0 | AQ50: 0 | AR50: 0 | AS50: 1 | AT50: 0 | AU50: 1 | AV50: 0 | AW50: 0 | AX50: 0
B51: 45 | C51: 152 | D51: 100 | E51: 52 | F51: 62 | G51: 49 | H51: 13 | I51: 12 | J51: 5 | K51: 7 | L51: 8 | M51: 3 | N51: 5 | O51: 0 | P51: 0 | Q51: 0 | R51: 22 | S51: 11 | T51: 11 | U51: 15 | V51: 11 | W51: 4 | X51: 0 | Y51: 0 | Z51: 0 | AA51: 19 | AB51: 12 | AC51: 7 | AD51: 8 | AE51: 6 | AF51: 2 | AG51: 0 | AH51: 0 | AI51: 0 | AJ51: 0 | AK51: 0 | AL51: 0 | AM51: 3 | AN51: 2 | AO51: 1 | AP51: 0 | AQ51: 0 | AR51: 0 | AS51: 1 | AT51: 0 | AU51: 1 | AV51: 2 | AW51: 1 | AX51: 1
B52: 46 | C52: 154 | D52: 107 | E52: 47 | F52: 60 | G52: 44 | H52: 16 | I52: 18 | J52: 14 | K52: 4 | L52: 10 | M52: 5 | N52: 5 | O52: 0 | P52: 0 | Q52: 0 | R52: 23 | S52: 15 | T52: 8 | U52: 11 | V52: 8 | W52: 3 | X52: 0 | Y52: 0 | Z52: 0 | AA52: 20 | AB52: 12 | AC52: 8 | AD52: 9 | AE52: 6 | AF52: 3 | AG52: 2 | AH52: 2 | AI52: 0 | AJ52: 0 | AK52: 0 | AL52: 0 | AM52: 1 | AN52: 1 | AO52: 0 | AP52: 0 | AQ52: 0 | AR52: 0 | AS52: 0 | AT52: 0 | AU52: 0 | AV52: 0 | AW52: 0 | AX52: 0
B53: 47 | C53: 145 | D53: 100 | E53: 45 | F53: 50 | G53: 39 | H53: 11 | I53: 20 | J53: 11 | K53: 9 | L53: 3 | M53: 1 | N53: 2 | O53: 2 | P53: 2 | Q53: 0 | R53: 30 | S53: 19 | T53: 11 | U53: 16 | V53: 10 | W53: 6 | X53: 0 | Y53: 0 | Z53: 0 | AA53: 14 | AB53: 10 | AC53: 4 | AD53: 7 | AE53: 6 | AF53: 1 | AG53: 0 | AH53: 0 | AI53: 0 | AJ53: 0 | AK53: 0 | AL53: 0 | AM53: 0 | AN53: 0 | AO53: 0 | AP53: 2 | AQ53: 1 | AR53: 1 | AS53: 0 | AT53: 0 | AU53: 0 | AV53: 1 | AW53: 1 | AX53: 0
B54: 48 | C54: 191 | D54: 154 | E54: 37 | F54: 69 | G54: 61 | H54: 8 | I54: 20 | J54: 14 | K54: 6 | L54: 9 | M54: 3 | N54: 6 | O54: 1 | P54: 1 | Q54: 0 | R54: 41 | S54: 32 | T54: 9 | U54: 12 | V54: 9 | W54: 3 | X54: 0 | Y54: 0 | Z54: 0 | AA54: 28 | AB54: 24 | AC54: 4 | AD54: 5 | AE54: 5 | AF54: 0 | AG54: 0 | AH54: 0 | AI54: 0 | AJ54: 2 | AK54: 2 | AL54: 0 | AM54: 2 | AN54: 2 | AO54: 0 | AP54: 1 | AQ54: 1 | AR54: 0 | AS54: 0 | AT54: 0 | AU54: 0 | AV54: 1 | AW54: 0 | AX54: 1
B55: 49 | C55: 199 | D55: 127 | E55: 72 | F55: 71 | G55: 55 | H55: 16 | I55: 25 | J55: 12 | K55: 13 | L55: 10 | M55: 3 | N55: 7 | O55: 3 | P55: 2 | Q55: 1 | R55: 29 | S55: 18 | T55: 11 | U55: 23 | V55: 13 | W55: 10 | X55: 3 | Y55: 3 | Z55: 0 | AA55: 23 | AB55: 13 | AC55: 10 | AD55: 10 | AE55: 7 | AF55: 3 | AG55: 0 | AH55: 0 | AI55: 0 | AJ55: 0 | AK55: 0 | AL55: 0 | AM55: 1 | AN55: 0 | AO55: 1 | AP55: 0 | AQ55: 0 | AR55: 0 | AS55: 1 | AT55: 1 | AU55: 0 | AV55: 0 | AW55: 0 | AX55: 0
B56: 50 | C56: 218 | D56: 152 | E56: 66 | F56: 78 | G56: 62 | H56: 16 | I56: 25 | J56: 21 | K56: 4 | L56: 10 | M56: 3 | N56: 7 | O56: 3 | P56: 1 | Q56: 2 | R56: 27 | S56: 18 | T56: 9 | U56: 23 | V56: 17 | W56: 6 | X56: 0 | Y56: 0 | Z56: 0 | AA56: 31 | AB56: 20 | AC56: 11 | AD56: 12 | AE56: 6 | AF56: 6 | AG56: 0 | AH56: 0 | AI56: 0 | AJ56: 0 | AK56: 0 | AL56: 0 | AM56: 2 | AN56: 2 | AO56: 0 | AP56: 0 | AQ56: 0 | AR56: 0 | AS56: 2 | AT56: 1 | AU56: 1 | AV56: 5 | AW56: 1 | AX56: 4
B57: 51 | C57: 261 | D57: 171 | E57: 90 | F57: 83 | G57: 60 | H57: 23 | I57: 42 | J57: 25 | K57: 17 | L57: 12 | M57: 3 | N57: 9 | O57: 6 | P57: 5 | Q57: 1 | R57: 27 | S57: 19 | T57: 8 | U57: 29 | V57: 20 | W57: 9 | X57: 0 | Y57: 0 | Z57: 0 | AA57: 43 | AB57: 25 | AC57: 18 | AD57: 11 | AE57: 10 | AF57: 1 | AG57: 1 | AH57: 1 | AI57: 0 | AJ57: 1 | AK57: 1 | AL57: 0 | AM57: 1 | AN57: 1 | AO57: 0 | AP57: 2 | AQ57: 0 | AR57: 2 | AS57: 0 | AT57: 0 | AU57: 0 | AV57: 3 | AW57: 1 | AX57: 2
B58: 52 | C58: 265 | D58: 188 | E58: 77 | F58: 90 | G58: 72 | H58: 18 | I58: 31 | J58: 23 | K58: 8 | L58: 14 | M58: 9 | N58: 5 | O58: 2 | P58: 0 | Q58: 2 | R58: 34 | S58: 25 | T58: 9 | U58: 28 | V58: 18 | W58: 10 | X58: 1 | Y58: 1 | Z58: 0 | AA58: 37 | AB58: 22 | AC58: 15 | AD58: 17 | AE58: 11 | AF58: 6 | AG58: 1 | AH58: 0 | AI58: 1 | AJ58: 0 | AK58: 0 | AL58: 0 | AM58: 4 | AN58: 2 | AO58: 2 | AP58: 0 | AQ58: 0 | AR58: 0 | AS58: 2 | AT58: 2 | AU58: 0 | AV58: 4 | AW58: 3 | AX58: 1
B59: 53 | C59: 305 | D59: 200 | E59: 105 | F59: 112 | G59: 83 | H59: 29 | I59: 32 | J59: 19 | K59: 13 | L59: 18 | M59: 8 | N59: 10 | O59: 2 | P59: 2 | Q59: 0 | R59: 41 | S59: 30 | T59: 11 | U59: 25 | V59: 19 | W59: 6 | X59: 0 | Y59: 0 | Z59: 0 | AA59: 41 | AB59: 18 | AC59: 23 | AD59: 20 | AE59: 13 | AF59: 7 | AG59: 2 | AH59: 1 | AI59: 1 | AJ59: 3 | AK59: 1 | AL59: 2 | AM59: 3 | AN59: 2 | AO59: 1 | AP59: 3 | AQ59: 1 | AR59: 2 | AS59: 1 | AT59: 1 | AU59: 0 | AV59: 2 | AW59: 2 | AX59: 0
B60: 54 | C60: 283 | D60: 196 | E60: 87 | F60: 109 | G60: 79 | H60: 30 | I60: 34 | J60: 25 | K60: 9 | L60: 8 | M60: 6 | N60: 2 | O60: 1 | P60: 1 | Q60: 0 | R60: 26 | S60: 16 | T60: 10 | U60: 25 | V60: 18 | W60: 7 | X60: 0 | Y60: 0 | Z60: 0 | AA60: 44 | AB60: 27 | AC60: 17 | AD60: 25 | AE60: 17 | AF60: 8 | AG60: 0 | AH60: 0 | AI60: 0 | AJ60: 0 | AK60: 0 | AL60: 0 | AM60: 8 | AN60: 6 | AO60: 2 | AP60: 0 | AQ60: 0 | AR60: 0 | AS60: 2 | AT60: 1 | AU60: 1 | AV60: 1 | AW60: 0 | AX60: 1
B61: 55 | C61: 308 | D61: 209 | E61: 99 | F61: 135 | G61: 100 | H61: 35 | I61: 32 | J61: 21 | K61: 11 | L61: 14 | M61: 5 | N61: 9 | O61: 2 | P61: 1 | Q61: 1 | R61: 25 | S61: 18 | T61: 7 | U61: 30 | V61: 20 | W61: 10 | X61: 0 | Y61: 0 | Z61: 0 | AA61: 41 | AB61: 26 | AC61: 15 | AD61: 18 | AE61: 14 | AF61: 4 | AG61: 0 | AH61: 0 | AI61: 0 | AJ61: 1 | AK61: 0 | AL61: 1 | AM61: 3 | AN61: 2 | AO61: 1 | AP61: 0 | AQ61: 0 | AR61: 0 | AS61: 2 | AT61: 1 | AU61: 1 | AV61: 5 | AW61: 1 | AX61: 4
B62: 56 | C62: 320 | D62: 226 | E62: 94 | F62: 136 | G62: 98 | H62: 38 | I62: 45 | J62: 30 | K62: 15 | L62: 14 | M62: 11 | N62: 3 | O62: 3 | P62: 2 | Q62: 1 | R62: 16 | S62: 12 | T62: 4 | U62: 29 | V62: 20 | W62: 9 | X62: 0 | Y62: 0 | Z62: 0 | AA62: 42 | AB62: 31 | AC62: 11 | AD62: 26 | AE62: 15 | AF62: 11 | AG62: 1 | AH62: 1 | AI62: 0 | AJ62: 1 | AK62: 1 | AL62: 0 | AM62: 7 | AN62: 5 | AO62: 2 | AP62: 0 | AQ62: 0 | AR62: 0 | AS62: 0 | AT62: 0 | AU62: 0 | AV62: 0 | AW62: 0 | AX62: 0
B63: 57 | C63: 366 | D63: 248 | E63: 118 | F63: 160 | G63: 119 | H63: 41 | I63: 40 | J63: 24 | K63: 16 | L63: 26 | M63: 17 | N63: 9 | O63: 5 | P63: 2 | Q63: 3 | R63: 16 | S63: 10 | T63: 6 | U63: 30 | V63: 21 | W63: 9 | X63: 0 | Y63: 0 | Z63: 0 | AA63: 53 | AB63: 30 | AC63: 23 | AD63: 24 | AE63: 18 | AF63: 6 | AG63: 1 | AH63: 0 | AI63: 1 | AJ63: 1 | AK63: 0 | AL63: 1 | AM63: 6 | AN63: 6 | AO63: 0 | AP63: 0 | AQ63: 0 | AR63: 0 | AS63: 2 | AT63: 0 | AU63: 2 | AV63: 2 | AW63: 1 | AX63: 1
B64: 58 | C64: 340 | D64: 227 | E64: 113 | F64: 144 | G64: 101 | H64: 43 | I64: 39 | J64: 20 | K64: 19 | L64: 24 | M64: 11 | N64: 13 | O64: 5 | P64: 5 | Q64: 0 | R64: 22 | S64: 18 | T64: 4 | U64: 31 | V64: 21 | W64: 10 | X64: 0 | Y64: 0 | Z64: 0 | AA64: 37 | AB64: 24 | AC64: 13 | AD64: 27 | AE64: 18 | AF64: 9 | AG64: 2 | AH64: 2 | AI64: 0 | AJ64: 1 | AK64: 1 | AL64: 0 | AM64: 4 | AN64: 3 | AO64: 1 | AP64: 1 | AQ64: 1 | AR64: 0 | AS64: 3 | AT64: 2 | AU64: 1 | AV64: 0 | AW64: 0 | AX64: 0
B65: 59 | C65: 325 | D65: 205 | E65: 120 | F65: 139 | G65: 94 | H65: 45 | I65: 42 | J65: 21 | K65: 21 | L65: 33 | M65: 21 | N65: 12 | O65: 3 | P65: 2 | Q65: 1 | R65: 14 | S65: 8 | T65: 6 | U65: 33 | V65: 24 | W65: 9 | X65: 0 | Y65: 0 | Z65: 0 | AA65: 31 | AB65: 17 | AC65: 14 | AD65: 20 | AE65: 10 | AF65: 10 | AG65: 0 | AH65: 0 | AI65: 0 | AJ65: 2 | AK65: 2 | AL65: 0 | AM65: 7 | AN65: 5 | AO65: 2 | AP65: 0 | AQ65: 0 | AR65: 0 | AS65: 1 | AT65: 1 | AU65: 0 | AV65: 0 | AW65: 0 | AX65: 0
B66: 60 | C66: 357 | D66: 251 | E66: 106 | F66: 168 | G66: 119 | H66: 49 | I66: 45 | J66: 34 | K66: 11 | L66: 25 | M66: 15 | N66: 10 | O66: 1 | P66: 1 | Q66: 0 | R66: 16 | S66: 11 | T66: 5 | U66: 41 | V66: 30 | W66: 11 | X66: 0 | Y66: 0 | Z66: 0 | AA66: 26 | AB66: 16 | AC66: 10 | AD66: 25 | AE66: 16 | AF66: 9 | AG66: 1 | AH66: 1 | AI66: 0 | AJ66: 1 | AK66: 0 | AL66: 1 | AM66: 4 | AN66: 4 | AO66: 0 | AP66: 0 | AQ66: 0 | AR66: 0 | AS66: 4 | AT66: 4 | AU66: 0 | AV66: 0 | AW66: 0 | AX66: 0
B67: 61 | C67: 353 | D67: 228 | E67: 125 | F67: 171 | G67: 114 | H67: 57 | I67: 42 | J67: 26 | K67: 16 | L67: 28 | M67: 19 | N67: 9 | O67: 2 | P67: 1 | Q67: 1 | R67: 14 | S67: 10 | T67: 4 | U67: 35 | V67: 25 | W67: 10 | X67: 0 | Y67: 0 | Z67: 0 | AA67: 22 | AB67: 13 | AC67: 9 | AD67: 28 | AE67: 14 | AF67: 14 | AG67: 1 | AH67: 0 | AI67: 1 | AJ67: 1 | AK67: 1 | AL67: 0 | AM67: 6 | AN67: 4 | AO67: 2 | AP67: 1 | AQ67: 0 | AR67: 1 | AS67: 2 | AT67: 1 | AU67: 1 | AV67: 0 | AW67: 0 | AX67: 0
B68: 62 | C68: 408 | D68: 284 | E68: 124 | F68: 193 | G68: 136 | H68: 57 | I68: 46 | J68: 34 | K68: 12 | L68: 35 | M68: 23 | N68: 12 | O68: 4 | P68: 4 | Q68: 0 | R68: 13 | S68: 12 | T68: 1 | U68: 38 | V68: 25 | W68: 13 | X68: 0 | Y68: 0 | Z68: 0 | AA68: 36 | AB68: 21 | AC68: 15 | AD68: 24 | AE68: 15 | AF68: 9 | AG68: 2 | AH68: 1 | AI68: 1 | AJ68: 3 | AK68: 2 | AL68: 1 | AM68: 7 | AN68: 4 | AO68: 3 | AP68: 0 | AQ68: 0 | AR68: 0 | AS68: 5 | AT68: 5 | AU68: 0 | AV68: 2 | AW68: 2 | AX68: 0
B69: 63 | C69: 475 | D69: 333 | E69: 142 | F69: 209 | G69: 149 | H69: 60 | I69: 58 | J69: 36 | K69: 22 | L69: 43 | M69: 30 | N69: 13 | O69: 3 | P69: 3 | Q69: 0 | R69: 22 | S69: 17 | T69: 5 | U69: 58 | V69: 42 | W69: 16 | X69: 0 | Y69: 0 | Z69: 0 | AA69: 40 | AB69: 28 | AC69: 12 | AD69: 24 | AE69: 19 | AF69: 5 | AG69: 1 | AH69: 1 | AI69: 0 | AJ69: 2 | AK69: 0 | AL69: 2 | AM69: 6 | AN69: 3 | AO69: 3 | AP69: 1 | AQ69: 0 | AR69: 1 | AS69: 4 | AT69: 2 | AU69: 2 | AV69: 4 | AW69: 3 | AX69: 1
B70: 64 | C70: 507 | D70: 319 | E70: 188 | F70: 242 | G70: 151 | H70: 91 | I70: 56 | J70: 38 | K70: 18 | L70: 51 | M70: 25 | N70: 26 | O70: 4 | P70: 4 | Q70: 0 | R70: 12 | S70: 7 | T70: 5 | U70: 47 | V70: 28 | W70: 19 | X70: 0 | Y70: 0 | Z70: 0 | AA70: 40 | AB70: 29 | AC70: 11 | AD70: 32 | AE70: 21 | AF70: 11 | AG70: 2 | AH70: 2 | AI70: 0 | AJ70: 5 | AK70: 4 | AL70: 1 | AM70: 7 | AN70: 5 | AO70: 2 | AP70: 0 | AQ70: 0 | AR70: 0 | AS70: 6 | AT70: 2 | AU70: 4 | AV70: 3 | AW70: 3 | AX70: 0
B71: 65 | C71: 530 | D71: 349 | E71: 181 | F71: 254 | G71: 177 | H71: 77 | I71: 47 | J71: 32 | K71: 15 | L71: 54 | M71: 32 | N71: 22 | O71: 9 | P71: 6 | Q71: 3 | R71: 15 | S71: 10 | T71: 5 | U71: 54 | V71: 38 | W71: 16 | X71: 0 | Y71: 0 | Z71: 0 | AA71: 39 | AB71: 22 | AC71: 17 | AD71: 37 | AE71: 22 | AF71: 15 | AG71: 1 | AH71: 1 | AI71: 0 | AJ71: 5 | AK71: 1 | AL71: 4 | AM71: 8 | AN71: 4 | AO71: 4 | AP71: 0 | AQ71: 0 | AR71: 0 | AS71: 7 | AT71: 4 | AU71: 3 | AV71: 0 | AW71: 0 | AX71: 0
B72: 66 | C72: 474 | D72: 299 | E72: 175 | F72: 229 | G72: 143 | H72: 86 | I72: 55 | J72: 37 | K72: 18 | L72: 50 | M72: 26 | N72: 24 | O72: 5 | P72: 2 | Q72: 3 | R72: 11 | S72: 8 | T72: 3 | U72: 58 | V72: 40 | W72: 18 | X72: 0 | Y72: 0 | Z72: 0 | AA72: 29 | AB72: 21 | AC72: 8 | AD72: 25 | AE72: 12 | AF72: 13 | AG72: 0 | AH72: 0 | AI72: 0 | AJ72: 3 | AK72: 3 | AL72: 0 | AM72: 4 | AN72: 3 | AO72: 1 | AP72: 2 | AQ72: 2 | AR72: 0 | AS72: 3 | AT72: 2 | AU72: 1 | AV72: 0 | AW72: 0 | AX72: 0
B73: 67 | C73: 492 | D73: 298 | E73: 194 | F73: 245 | G73: 143 | H73: 102 | I73: 41 | J73: 24 | K73: 17 | L73: 60 | M73: 37 | N73: 23 | O73: 2 | P73: 0 | Q73: 2 | R73: 7 | S73: 4 | T73: 3 | U73: 60 | V73: 41 | W73: 19 | X73: 0 | Y73: 0 | Z73: 0 | AA73: 28 | AB73: 17 | AC73: 11 | AD73: 29 | AE73: 17 | AF73: 12 | AG73: 1 | AH73: 1 | AI73: 0 | AJ73: 8 | AK73: 5 | AL73: 3 | AM73: 4 | AN73: 3 | AO73: 1 | AP73: 3 | AQ73: 3 | AR73: 0 | AS73: 3 | AT73: 2 | AU73: 1 | AV73: 1 | AW73: 1 | AX73: 0
B74: 68 | C74: 461 | D74: 280 | E74: 181 | F74: 229 | G74: 140 | H74: 89 | I74: 44 | J74: 27 | K74: 17 | L74: 60 | M74: 34 | N74: 26 | O74: 4 | P74: 3 | Q74: 1 | R74: 12 | S74: 8 | T74: 4 | U74: 49 | V74: 32 | W74: 17 | X74: 0 | Y74: 0 | Z74: 0 | AA74: 16 | AB74: 11 | AC74: 5 | AD74: 33 | AE74: 18 | AF74: 15 | AG74: 1 | AH74: 1 | AI74: 0 | AJ74: 5 | AK74: 2 | AL74: 3 | AM74: 3 | AN74: 2 | AO74: 1 | AP74: 0 | AQ74: 0 | AR74: 0 | AS74: 4 | AT74: 1 | AU74: 3 | AV74: 1 | AW74: 1 | AX74: 0
B75: 69 | C75: 526 | D75: 305 | E75: 221 | F75: 260 | G75: 140 | H75: 120 | I75: 56 | J75: 37 | K75: 19 | L75: 61 | M75: 29 | N75: 32 | O75: 3 | P75: 3 | Q75: 0 | R75: 6 | S75: 3 | T75: 3 | U75: 54 | V75: 33 | W75: 21 | X75: 0 | Y75: 0 | Z75: 0 | AA75: 33 | AB75: 22 | AC75: 11 | AD75: 32 | AE75: 21 | AF75: 11 | AG75: 2 | AH75: 1 | AI75: 1 | AJ75: 7 | AK75: 6 | AL75: 1 | AM75: 5 | AN75: 5 | AO75: 0 | AP75: 0 | AQ75: 0 | AR75: 0 | AS75: 4 | AT75: 3 | AU75: 1 | AV75: 3 | AW75: 2 | AX75: 1
B76: 70 | C76: 479 | D76: 267 | E76: 212 | F76: 240 | G76: 130 | H76: 110 | I76: 45 | J76: 23 | K76: 22 | L76: 61 | M76: 36 | N76: 25 | O76: 6 | P76: 5 | Q76: 1 | R76: 8 | S76: 5 | T76: 3 | U76: 61 | V76: 35 | W76: 26 | X76: 0 | Y76: 0 | Z76: 0 | AA76: 14 | AB76: 7 | AC76: 7 | AD76: 26 | AE76: 18 | AF76: 8 | AG76: 1 | AH76: 0 | AI76: 1 | AJ76: 5 | AK76: 3 | AL76: 2 | AM76: 4 | AN76: 2 | AO76: 2 | AP76: 0 | AQ76: 0 | AR76: 0 | AS76: 7 | AT76: 3 | AU76: 4 | AV76: 1 | AW76: 0 | AX76: 1
B77: 71 | C77: 474 | D77: 282 | E77: 192 | F77: 247 | G77: 132 | H77: 115 | I77: 47 | J77: 26 | K77: 21 | L77: 68 | M77: 49 | N77: 19 | O77: 1 | P77: 1 | Q77: 0 | R77: 1 | S77: 0 | T77: 1 | U77: 55 | V77: 39 | W77: 16 | X77: 0 | Y77: 0 | Z77: 0 | AA77: 15 | AB77: 6 | AC77: 9 | AD77: 26 | AE77: 20 | AF77: 6 | AG77: 0 | AH77: 0 | AI77: 0 | AJ77: 4 | AK77: 3 | AL77: 1 | AM77: 4 | AN77: 3 | AO77: 1 | AP77: 0 | AQ77: 0 | AR77: 0 | AS77: 6 | AT77: 3 | AU77: 3 | AV77: 0 | AW77: 0 | AX77: 0
B78: 72 | C78: 521 | D78: 304 | E78: 217 | F78: 249 | G78: 132 | H78: 117 | I78: 62 | J78: 35 | K78: 27 | L78: 73 | M78: 44 | N78: 29 | O78: 6 | P78: 6 | Q78: 0 | R78: 6 | S78: 5 | T78: 1 | U78: 61 | V78: 44 | W78: 17 | X78: 0 | Y78: 0 | Z78: 0 | AA78: 17 | AB78: 12 | AC78: 5 | AD78: 29 | AE78: 15 | AF78: 14 | AG78: 0 | AH78: 0 | AI78: 0 | AJ78: 4 | AK78: 3 | AL78: 1 | AM78: 6 | AN78: 3 | AO78: 3 | AP78: 1 | AQ78: 0 | AR78: 1 | AS78: 7 | AT78: 5 | AU78: 2 | AV78: 0 | AW78: 0 | AX78: 0
B79: 73 | C79: 404 | D79: 218 | E79: 186 | F79: 194 | G79: 79 | H79: 115 | I79: 42 | J79: 26 | K79: 16 | L79: 72 | M79: 48 | N79: 24 | O79: 4 | P79: 4 | Q79: 0 | R79: 6 | S79: 5 | T79: 1 | U79: 43 | V79: 25 | W79: 18 | X79: 0 | Y79: 0 | Z79: 0 | AA79: 13 | AB79: 7 | AC79: 6 | AD79: 21 | AE79: 17 | AF79: 4 | AG79: 0 | AH79: 0 | AI79: 0 | AJ79: 0 | AK79: 0 | AL79: 0 | AM79: 6 | AN79: 5 | AO79: 1 | AP79: 1 | AQ79: 1 | AR79: 0 | AS79: 2 | AT79: 1 | AU79: 1 | AV79: 0 | AW79: 0 | AX79: 0
B80: 74 | C80: 499 | D80: 275 | E80: 224 | F80: 236 | G80: 113 | H80: 123 | I80: 49 | J80: 28 | K80: 21 | L80: 100 | M80: 66 | N80: 34 | O80: 3 | P80: 3 | Q80: 0 | R80: 7 | S80: 6 | T80: 1 | U80: 54 | V80: 29 | W80: 25 | X80: 0 | Y80: 0 | Z80: 0 | AA80: 14 | AB80: 9 | AC80: 5 | AD80: 25 | AE80: 12 | AF80: 13 | AG80: 0 | AH80: 0 | AI80: 0 | AJ80: 6 | AK80: 6 | AL80: 0 | AM80: 2 | AN80: 2 | AO80: 0 | AP80: 0 | AQ80: 0 | AR80: 0 | AS80: 3 | AT80: 1 | AU80: 2 | AV80: 0 | AW80: 0 | AX80: 0
B81: 75 | C81: 547 | D81: 287 | E81: 260 | F81: 245 | G81: 107 | H81: 138 | I81: 77 | J81: 38 | K81: 39 | L81: 94 | M81: 56 | N81: 38 | O81: 3 | P81: 1 | Q81: 2 | R81: 5 | S81: 4 | T81: 1 | U81: 60 | V81: 38 | W81: 22 | X81: 0 | Y81: 0 | Z81: 0 | AA81: 12 | AB81: 10 | AC81: 2 | AD81: 31 | AE81: 18 | AF81: 13 | AG81: 0 | AH81: 0 | AI81: 0 | AJ81: 9 | AK81: 8 | AL81: 1 | AM81: 5 | AN81: 5 | AO81: 0 | AP81: 0 | AQ81: 0 | AR81: 0 | AS81: 4 | AT81: 2 | AU81: 2 | AV81: 2 | AW81: 0 | AX81: 2
B82: 76 | C82: 499 | D82: 256 | E82: 243 | F82: 235 | G82: 107 | H82: 128 | I82: 67 | J82: 34 | K82: 33 | L82: 107 | M82: 69 | N82: 38 | O82: 5 | P82: 3 | Q82: 2 | R82: 0 | S82: 0 | T82: 0 | U82: 47 | V82: 24 | W82: 23 | X82: 0 | Y82: 0 | Z82: 0 | AA82: 7 | AB82: 4 | AC82: 3 | AD82: 20 | AE82: 9 | AF82: 11 | AG82: 0 | AH82: 0 | AI82: 0 | AJ82: 2 | AK82: 2 | AL82: 0 | AM82: 4 | AN82: 1 | AO82: 3 | AP82: 0 | AQ82: 0 | AR82: 0 | AS82: 5 | AT82: 3 | AU82: 2 | AV82: 0 | AW82: 0 | AX82: 0
B83: 77 | C83: 574 | D83: 304 | E83: 270 | F83: 262 | G83: 128 | H83: 134 | I83: 69 | J83: 37 | K83: 32 | L83: 138 | M83: 87 | N83: 51 | O83: 6 | P83: 5 | Q83: 1 | R83: 2 | S83: 0 | T83: 2 | U83: 50 | V83: 19 | W83: 31 | X83: 0 | Y83: 0 | Z83: 0 | AA83: 7 | AB83: 2 | AC83: 5 | AD83: 23 | AE83: 16 | AF83: 7 | AG83: 1 | AH83: 0 | AI83: 1 | AJ83: 6 | AK83: 4 | AL83: 2 | AM83: 2 | AN83: 1 | AO83: 1 | AP83: 0 | AQ83: 0 | AR83: 0 | AS83: 8 | AT83: 5 | AU83: 3 | AV83: 0 | AW83: 0 | AX83: 0
B84: 78 | C84: 502 | D84: 254 | E84: 248 | F84: 255 | G84: 103 | H84: 152 | I84: 76 | J84: 36 | K84: 40 | L84: 98 | M84: 68 | N84: 30 | O84: 3 | P84: 2 | Q84: 1 | R84: 1 | S84: 1 | T84: 0 | U84: 45 | V84: 30 | W84: 15 | X84: 0 | Y84: 0 | Z84: 0 | AA84: 3 | AB84: 2 | AC84: 1 | AD84: 11 | AE84: 6 | AF84: 5 | AG84: 0 | AH84: 0 | AI84: 0 | AJ84: 4 | AK84: 4 | AL84: 0 | AM84: 1 | AN84: 0 | AO84: 1 | AP84: 0 | AQ84: 0 | AR84: 0 | AS84: 5 | AT84: 2 | AU84: 3 | AV84: 0 | AW84: 0 | AX84: 0
B85: 79 | C85: 427 | D85: 227 | E85: 200 | F85: 203 | G85: 89 | H85: 114 | I85: 48 | J85: 27 | K85: 21 | L85: 104 | M85: 73 | N85: 31 | O85: 2 | P85: 2 | Q85: 0 | R85: 1 | S85: 0 | T85: 1 | U85: 38 | V85: 16 | W85: 22 | X85: 0 | Y85: 0 | Z85: 0 | AA85: 4 | AB85: 3 | AC85: 1 | AD85: 13 | AE85: 7 | AF85: 6 | AG85: 0 | AH85: 0 | AI85: 0 | AJ85: 6 | AK85: 4 | AL85: 2 | AM85: 1 | AN85: 1 | AO85: 0 | AP85: 0 | AQ85: 0 | AR85: 0 | AS85: 7 | AT85: 5 | AU85: 2 | AV85: 0 | AW85: 0 | AX85: 0
B86: 80 | C86: 475 | D86: 229 | E86: 246 | F86: 215 | G86: 83 | H86: 132 | I86: 49 | J86: 28 | K86: 21 | L86: 126 | M86: 69 | N86: 57 | O86: 5 | P86: 4 | Q86: 1 | R86: 1 | S86: 1 | T86: 0 | U86: 54 | V86: 27 | W86: 27 | X86: 0 | Y86: 0 | Z86: 0 | AA86: 2 | AB86: 2 | AC86: 0 | AD86: 10 | AE86: 5 | AF86: 5 | AG86: 1 | AH86: 0 | AI86: 1 | AJ86: 3 | AK86: 3 | AL86: 0 | AM86: 1 | AN86: 0 | AO86: 1 | AP86: 1 | AQ86: 1 | AR86: 0 | AS86: 7 | AT86: 6 | AU86: 1 | AV86: 0 | AW86: 0 | AX86: 0
B87: 81 | C87: 456 | D87: 200 | E87: 256 | F87: 197 | G87: 61 | H87: 136 | I87: 55 | J87: 28 | K87: 27 | L87: 138 | M87: 72 | N87: 66 | O87: 2 | P87: 2 | Q87: 0 | R87: 0 | S87: 0 | T87: 0 | U87: 37 | V87: 19 | W87: 18 | X87: 0 | Y87: 0 | Z87: 0 | AA87: 4 | AB87: 4 | AC87: 0 | AD87: 15 | AE87: 11 | AF87: 4 | AG87: 0 | AH87: 0 | AI87: 0 | AJ87: 3 | AK87: 2 | AL87: 1 | AM87: 1 | AN87: 0 | AO87: 1 | AP87: 2 | AQ87: 1 | AR87: 1 | AS87: 1 | AT87: 0 | AU87: 1 | AV87: 1 | AW87: 0 | AX87: 1
B88: 82 | C88: 569 | D88: 269 | E88: 300 | F88: 247 | G88: 83 | H88: 164 | I88: 73 | J88: 38 | K88: 35 | L88: 167 | M88: 102 | N88: 65 | O88: 2 | P88: 0 | Q88: 2 | R88: 2 | S88: 2 | T88: 0 | U88: 42 | V88: 23 | W88: 19 | X88: 0 | Y88: 0 | Z88: 0 | AA88: 1 | AB88: 1 | AC88: 0 | AD88: 16 | AE88: 7 | AF88: 9 | AG88: 0 | AH88: 0 | AI88: 0 | AJ88: 3 | AK88: 3 | AL88: 0 | AM88: 2 | AN88: 0 | AO88: 2 | AP88: 0 | AQ88: 0 | AR88: 0 | AS88: 12 | AT88: 9 | AU88: 3 | AV88: 2 | AW88: 1 | AX88: 1
B89: 83 | C89: 479 | D89: 219 | E89: 260 | F89: 197 | G89: 74 | H89: 123 | I89: 49 | J89: 20 | K89: 29 | L89: 148 | M89: 81 | N89: 67 | O89: 0 | P89: 0 | Q89: 0 | R89: 1 | S89: 1 | T89: 0 | U89: 50 | V89: 25 | W89: 25 | X89: 0 | Y89: 0 | Z89: 0 | AA89: 4 | AB89: 1 | AC89: 3 | AD89: 21 | AE89: 10 | AF89: 11 | AG89: 0 | AH89: 0 | AI89: 0 | AJ89: 0 | AK89: 0 | AL89: 0 | AM89: 0 | AN89: 0 | AO89: 0 | AP89: 0 | AQ89: 0 | AR89: 0 | AS89: 9 | AT89: 7 | AU89: 2 | AV89: 0 | AW89: 0 | AX89: 0
B90: 84 | C90: 372 | D90: 171 | E90: 201 | F90: 159 | G90: 61 | H90: 98 | I90: 39 | J90: 19 | K90: 20 | L90: 120 | M90: 64 | N90: 56 | O90: 2 | P90: 2 | Q90: 0 | R90: 1 | S90: 1 | T90: 0 | U90: 35 | V90: 16 | W90: 19 | X90: 0 | Y90: 0 | Z90: 0 | AA90: 1 | AB90: 0 | AC90: 1 | AD90: 13 | AE90: 7 | AF90: 6 | AG90: 0 | AH90: 0 | AI90: 0 | AJ90: 0 | AK90: 0 | AL90: 0 | AM90: 1 | AN90: 1 | AO90: 0 | AP90: 0 | AQ90: 0 | AR90: 0 | AS90: 1 | AT90: 0 | AU90: 1 | AV90: 0 | AW90: 0 | AX90: 0
A91: 합계 | B91: 85 | C91: 413 | D91: 196 | E91: 217 | F91: 151 | G91: 50 | H91: 101 | I91: 50 | J91: 26 | K91: 24 | L91: 152 | M91: 90 | N91: 62 | O91: 3 | P91: 2 | Q91: 1 | R91: 0 | S91: 0 | T91: 0 | U91: 32 | V91: 13 | W91: 19 | X91: 0 | Y91: 0 | Z91: 0 | AA91: 0 | AB91: 0 | AC91: 0 | AD91: 15 | AE91: 7 | AF91: 8 | AG91: 0 | AH91: 0 | AI91: 0 | AJ91: 1 | AK91: 1 | AL91: 0 | AM91: 0 | AN91: 0 | AO91: 0 | AP91: 1 | AQ91: 0 | AR91: 1 | AS91: 8 | AT91: 7 | AU91: 1 | AV91: 0 | AW91: 0 | AX91: 0
B92: 86 | C92: 343 | D92: 147 | E92: 196 | F92: 125 | G92: 42 | H92: 83 | I92: 33 | J92: 16 | K92: 17 | L92: 131 | M92: 64 | N92: 67 | O92: 0 | P92: 0 | Q92: 0 | R92: 2 | S92: 1 | T92: 1 | U92: 32 | V92: 10 | W92: 22 | X92: 0 | Y92: 0 | Z92: 0 | AA92: 1 | AB92: 0 | AC92: 1 | AD92: 11 | AE92: 6 | AF92: 5 | AG92: 0 | AH92: 0 | AI92: 0 | AJ92: 2 | AK92: 2 | AL92: 0 | AM92: 0 | AN92: 0 | AO92: 0 | AP92: 0 | AQ92: 0 | AR92: 0 | AS92: 6 | AT92: 6 | AU92: 0 | AV92: 0 | AW92: 0 | AX92: 0
B93: 87 | C93: 311 | D93: 111 | E93: 200 | F93: 126 | G93: 34 | H93: 92 | I93: 23 | J93: 11 | K93: 12 | L93: 109 | M93: 42 | N93: 67 | O93: 2 | P93: 2 | Q93: 0 | R93: 1 | S93: 1 | T93: 0 | U93: 36 | V93: 13 | W93: 23 | X93: 0 | Y93: 0 | Z93: 0 | AA93: 0 | AB93: 0 | AC93: 0 | AD93: 9 | AE93: 5 | AF93: 4 | AG93: 1 | AH93: 1 | AI93: 0 | AJ93: 0 | AK93: 0 | AL93: 0 | AM93: 0 | AN93: 0 | AO93: 0 | AP93: 0 | AQ93: 0 | AR93: 0 | AS93: 4 | AT93: 2 | AU93: 2 | AV93: 0 | AW93: 0 | AX93: 0
B94: 88 | C94: 275 | D94: 116 | E94: 159 | F94: 89 | G94: 29 | H94: 60 | I94: 24 | J94: 10 | K94: 14 | L94: 123 | M94: 59 | N94: 64 | O94: 0 | P94: 0 | Q94: 0 | R94: 0 | S94: 0 | T94: 0 | U94: 28 | V94: 10 | W94: 18 | X94: 0 | Y94: 0 | Z94: 0 | AA94: 1 | AB94: 1 | AC94: 0 | AD94: 7 | AE94: 4 | AF94: 3 | AG94: 1 | AH94: 1 | AI94: 0 | AJ94: 1 | AK94: 1 | AL94: 0 | AM94: 0 | AN94: 0 | AO94: 0 | AP94: 0 | AQ94: 0 | AR94: 0 | AS94: 1 | AT94: 1 | AU94: 0 | AV94: 0 | AW94: 0 | AX94: 0
B95: 89 | C95: 188 | D95: 73 | E95: 115 | F95: 73 | G95: 16 | H95: 57 | I95: 15 | J95: 8 | K95: 7 | L95: 77 | M95: 37 | N95: 40 | O95: 1 | P95: 0 | Q95: 1 | R95: 1 | S95: 0 | T95: 1 | U95: 13 | V95: 6 | W95: 7 | X95: 0 | Y95: 0 | Z95: 0 | AA95: 0 | AB95: 0 | AC95: 0 | AD95: 5 | AE95: 4 | AF95: 1 | AG95: 0 | AH95: 0 | AI95: 0 | AJ95: 0 | AK95: 0 | AL95: 0 | AM95: 0 | AN95: 0 | AO95: 0 | AP95: 0 | AQ95: 0 | AR95: 0 | AS95: 3 | AT95: 2 | AU95: 1 | AV95: 0 | AW95: 0 | AX95: 0
B96: 90 | C96: 188 | D96: 62 | E96: 126 | F96: 68 | G96: 9 | H96: 59 | I96: 18 | J96: 4 | K96: 14 | L96: 79 | M96: 41 | N96: 38 | O96: 0 | P96: 0 | Q96: 0 | R96: 0 | S96: 0 | T96: 0 | U96: 15 | V96: 5 | W96: 10 | X96: 0 | Y96: 0 | Z96: 0 | AA96: 1 | AB96: 0 | AC96: 1 | AD96: 5 | AE96: 2 | AF96: 3 | AG96: 0 | AH96: 0 | AI96: 0 | AJ96: 0 | AK96: 0 | AL96: 0 | AM96: 0 | AN96: 0 | AO96: 0 | AP96: 0 | AQ96: 0 | AR96: 0 | AS96: 2 | AT96: 1 | AU96: 1 | AV96: 0 | AW96: 0 | AX96: 0
B97: 91 | C97: 123 | D97: 48 | E97: 75 | F97: 31 | G97: 11 | H97: 20 | I97: 12 | J97: 5 | K97: 7 | L97: 68 | M97: 28 | N97: 40 | O97: 2 | P97: 1 | Q97: 1 | R97: 0 | S97: 0 | T97: 0 | U97: 10 | V97: 3 | W97: 7 | X97: 0 | Y97: 0 | Z97: 0 | AA97: 0 | AB97: 0 | AC97: 0 | AD97: 0 | AE97: 0 | AF97: 0 | AG97: 0 | AH97: 0 | AI97: 0 | AJ97: 0 | AK97: 0 | AL97: 0 | AM97: 0 | AN97: 0 | AO97: 0 | AP97: 0 | AQ97: 0 | AR97: 0 | AS97: 0 | AT97: 0 | AU97: 0 | AV97: 0 | AW97: 0 | AX97: 0
B98: 92 | C98: 71 | D98: 19 | E98: 52 | F98: 16 | G98: 1 | H98: 15 | I98: 2 | J98: 1 | K98: 1 | L98: 44 | M98: 16 | N98: 28 | O98: 1 | P98: 0 | Q98: 1 | R98: 0 | S98: 0 | T98: 0 | U98: 6 | V98: 1 | W98: 5 | X98: 0 | Y98: 0 | Z98: 0 | AA98: 0 | AB98: 0 | AC98: 0 | AD98: 2 | AE98: 0 | AF98: 2 | AG98: 0 | AH98: 0 | AI98: 0 | AJ98: 0 | AK98: 0 | AL98: 0 | AM98: 0 | AN98: 0 | AO98: 0 | AP98: 0 | AQ98: 0 | AR98: 0 | AS98: 0 | AT98: 0 | AU98: 0 | AV98: 0 | AW98: 0 | AX98: 0
B99: 93 | C99: 70 | D99: 22 | E99: 48 | F99: 19 | G99: 6 | H99: 13 | I99: 8 | J99: 2 | K99: 6 | L99: 38 | M99: 14 | N99: 24 | O99: 0 | P99: 0 | Q99: 0 | R99: 0 | S99: 0 | T99: 0 | U99: 4 | V99: 0 | W99: 4 | X99: 0 | Y99: 0 | Z99: 0 | AA99: 0 | AB99: 0 | AC99: 0 | AD99: 1 | AE99: 0 | AF99: 1 | AG99: 0 | AH99: 0 | AI99: 0 | AJ99: 0 | AK99: 0 | AL99: 0 | AM99: 0 | AN99: 0 | AO99: 0 | AP99: 0 | AQ99: 0 | AR99: 0 | AS99: 0 | AT99: 0 | AU99: 0 | AV99: 0 | AW99: 0 | AX99: 0
B100: 94 | C100: 54 | D100: 15 | E100: 39 | F100: 13 | G100: 1 | H100: 12 | I100: 7 | J100: 3 | K100: 4 | L100: 30 | M100: 8 | N100: 22 | O100: 0 | P100: 0 | Q100: 0 | R100: 0 | S100: 0 | T100: 0 | U100: 2 | V100: 1 | W100: 1 | X100: 0 | Y100: 0 | Z100: 0 | AA100: 0 | AB100: 0 | AC100: 0 | AD100: 0 | AE100: 0 | AF100: 0 | AG100: 0 | AH100: 0 | AI100: 0 | AJ100: 0 | AK100: 0 | AL100: 0 | AM100: 0 | AN100: 0 | AO100: 0 | AP100: 0 | AQ100: 0 | AR100: 0 | AS100: 2 | AT100: 2 | AU100: 0 | AV100: 0 | AW100: 0 | AX100: 0
B101: 95 | C101: 43 | D101: 19 | E101: 24 | F101: 15 | G101: 3 | H101: 12 | I101: 4 | J101: 2 | K101: 2 | L101: 19 | M101: 10 | N101: 9 | O101: 0 | P101: 0 | Q101: 0 | R101: 0 | S101: 0 | T101: 0 | U101: 2 | V101: 1 | W101: 1 | X101: 0 | Y101: 0 | Z101: 0 | AA101: 0 | AB101: 0 | AC101: 0 | AD101: 1 | AE101: 1 | AF101: 0 | AG101: 0 | AH101: 0 | AI101: 0 | AJ101: 1 | AK101: 1 | AL101: 0 | AM101: 0 | AN101: 0 | AO101: 0 | AP101: 0 | AQ101: 0 | AR101: 0 | AS101: 1 | AT101: 1 | AU101: 0 | AV101: 0 | AW101: 0 | AX101: 0
B102: 96 | C102: 16 | D102: 4 | E102: 12 | F102: 4 | G102: 0 | H102: 4 | I102: 2 | J102: 0 | K102: 2 | L102: 9 | M102: 3 | N102: 6 | O102: 0 | P102: 0 | Q102: 0 | R102: 0 | S102: 0 | T102: 0 | U102: 0 | V102: 0 | W102: 0 | X102: 0 | Y102: 0 | Z102: 0 | AA102: 0 | AB102: 0 | AC102: 0 | AD102: 0 | AE102: 0 | AF102: 0 | AG102: 0 | AH102: 0 | AI102: 0 | AJ102: 0 | AK102: 0 | AL102: 0 | AM102: 0 | AN102: 0 | AO102: 0 | AP102: 0 | AQ102: 0 | AR102: 0 | AS102: 1 | AT102: 1 | AU102: 0 | AV102: 0 | AW102: 0 | AX102: 0
B103: 97 | C103: 18 | D103: 6 | E103: 12 | F103: 5 | G103: 1 | H103: 4 | I103: 1 | J103: 0 | K103: 1 | L103: 11 | M103: 5 | N103: 6 | O103: 0 | P103: 0 | Q103: 0 | R103: 0 | S103: 0 | T103: 0 | U103: 0 | V103: 0 | W103: 0 | X103: 0 | Y103: 0 | Z103: 0 | AA103: 0 | AB103: 0 | AC103: 0 | AD103: 0 | AE103: 0 | AF103: 0 | AG103: 0 | AH103: 0 | AI103: 0 | AJ103: 0 | AK103: 0 | AL103: 0 | AM103: 0 | AN103: 0 | AO103: 0 | AP103: 0 | AQ103: 0 | AR103: 0 | AS103: 1 | AT103: 0 | AU103: 1 | AV103: 0 | AW103: 0 | AX103: 0
B104: 98 | C104: 2 | D104: 1 | E104: 1 | F104: 0 | G104: 0 | H104: 0 | I104: 1 | J104: 1 | K104: 0 | L104: 1 | M104: 0 | N104: 1 | O104: 0 | P104: 0 | Q104: 0 | R104: 0 | S104: 0 | T104: 0 | U104: 0 | V104: 0 | W104: 0 | X104: 0 | Y104: 0 | Z104: 0 | AA104: 0 | AB104: 0 | AC104: 0 | AD104: 0 | AE104: 0 | AF104: 0 | AG104: 0 | AH104: 0 | AI104: 0 | AJ104: 0 | AK104: 0 | AL104: 0 | AM104: 0 | AN104: 0 | AO104: 0 | AP104: 0 | AQ104: 0 | AR104: 0 | AS104: 0 | AT104: 0 | AU104: 0 | AV104: 0 | AW104: 0 | AX104: 0
B105: 99 | C105: 11 | D105: 3 | E105: 8 | F105: 2 | G105: 1 | H105: 1 | I105: 0 | J105: 0 | K105: 0 | L105: 8 | M105: 2 | N105: 6 | O105: 0 | P105: 0 | Q105: 0 | R105: 0 | S105: 0 | T105: 0 | U105: 0 | V105: 0 | W105: 0 | X105: 0 | Y105: 0 | Z105: 0 | AA105: 0 | AB105: 0 | AC105: 0 | AD105: 0 | AE105: 0 | AF105: 0 | AG105: 0 | AH105: 0 | AI105: 0 | AJ105: 0 | AK105: 0 | AL105: 0 | AM105: 0 | AN105: 0 | AO105: 0 | AP105: 0 | AQ105: 0 | AR105: 0 | AS105: 1 | AT105: 0 | AU105: 1 | AV105: 0 | AW105: 0 | AX105: 0
B106: 100 | C106: 6 | D106: 1 | E106: 5 | F106: 2 | G106: 0 | H106: 2 | I106: 0 | J106: 0 | K106: 0 | L106: 3 | M106: 0 | N106: 3 | O106: 0 | P106: 0 | Q106: 0 | R106: 0 | S106: 0 | T106: 0 | U106: 0 | V106: 0 | W106: 0 | X106: 0 | Y106: 0 | Z106: 0 | AA106: 0 | AB106: 0 | AC106: 0 | AD106: 1 | AE106: 1 | AF106: 0 | AG106: 0 | AH106: 0 | AI106: 0 | AJ106: 0 | AK106: 0 | AL106: 0 | AM106: 0 | AN106: 0 | AO106: 0 | AP106: 0 | AQ106: 0 | AR106: 0 | AS106: 0 | AT106: 0 | AU106: 0 | AV106: 0 | AW106: 0 | AX106: 0
B107: 101 | C107: 4 | D107: 1 | E107: 3 | F107: 1 | G107: 0 | H107: 1 | I107: 0 | J107: 0 | K107: 0 | L107: 3 | M107: 1 | N107: 2 | O107: 0 | P107: 0 | Q107: 0 | R107: 0 | S107: 0 | T107: 0 | U107: 0 | V107: 0 | W107: 0 | X107: 0 | Y107: 0 | Z107: 0 | AA107: 0 | AB107: 0 | AC107: 0 | AD107: 0 | AE107: 0 | AF107: 0 | AG107: 0 | AH107: 0 | AI107: 0 | AJ107: 0 | AK107: 0 | AL107: 0 | AM107: 0 | AN107: 0 | AO107: 0 | AP107: 0 | AQ107: 0 | AR107: 0 | AS107: 0 | AT107: 0 | AU107: 0 | AV107: 0 | AW107: 0 | AX107: 0
B108: 102 | C108: 2 | D108: 0 | E108: 2 | F108: 0 | G108: 0 | H108: 0 | I108: 0 | J108: 0 | K108: 0 | L108: 2 | M108: 0 | N108: 2 | O108: 0 | P108: 0 | Q108: 0 | R108: 0 | S108: 0 | T108: 0 | U108: 0 | V108: 0 | W108: 0 | X108: 0 | Y108: 0 | Z108: 0 | AA108: 0 | AB108: 0 | AC108: 0 | AD108: 0 | AE108: 0 | AF108: 0 | AG108: 0 | AH108: 0 | AI108: 0 | AJ108: 0 | AK108: 0 | AL108: 0 | AM108: 0 | AN108: 0 | AO108: 0 | AP108: 0 | AQ108: 0 | AR108: 0 | AS108: 0 | AT108: 0 | AU108: 0 | AV108: 0 | AW108: 0 | AX108: 0
B109: 103 | C109: 2 | D109: 1 | E109: 1 | F109: 1 | G109: 1 | H109: 0 | I109: 0 | J109: 0 | K109: 0 | L109: 1 | M109: 0 | N109: 1 | O109: 0 | P109: 0 | Q109: 0 | R109: 0 | S109: 0 | T109: 0 | U109: 0 | V109: 0 | W109: 0 | X109: 0 | Y109: 0 | Z109: 0 | AA109: 0 | AB109: 0 | AC109: 0 | AD109: 0 | AE109: 0 | AF109: 0 | AG109: 0 | AH109: 0 | AI109: 0 | AJ109: 0 | AK109: 0 | AL109: 0 | AM109: 0 | AN109: 0 | AO109: 0 | AP109: 0 | AQ109: 0 | AR109: 0 | AS109: 0 | AT109: 0 | AU109: 0 | AV109: 0 | AW109: 0 | AX109: 0
B110: 105 | C110: 2 | D110: 0 | E110: 2 | F110: 0 | G110: 0 | H110: 0 | I110: 0 | J110: 0 | K110: 0 | L110: 2 | M110: 0 | N110: 2 | O110: 0 | P110: 0 | Q110: 0 | R110: 0 | S110: 0 | T110: 0 | U110: 0 | V110: 0 | W110: 0 | X110: 0 | Y110: 0 | Z110: 0 | AA110: 0 | AB110: 0 | AC110: 0 | AD110: 0 | AE110: 0 | AF110: 0 | AG110: 0 | AH110: 0 | AI110: 0 | AJ110: 0 | AK110: 0 | AL110: 0 | AM110: 0 | AN110: 0 | AO110: 0 | AP110: 0 | AQ110: 0 | AR110: 0 | AS110: 0 | AT110: 0 | AU110: 0 | AV110: 0 | AW110: 0 | AX110: 0

Sheet Sheet1 (hidden)
A1: 구산동 | B1: 2238
A2: 역촌동 | B2: 2143
A3: 진관동 | B3: 1968
A4: 불광1동 | B4: 1720
A5: 녹번동 | B5: 1641
A6: 불광2동 | B6: 1442
A7: 응암3동 | B7: 1327
A8: 응암1동 | B8: 1326
A9: 대조동 | B9: 1230
A10: 신사1동 | B10: 1229
A11: 갈현2동 | B11: 1204
A12: 갈현1동 | B12: 1046
A13: 응암2동 | B13: 987
A14: 신사2동 | B14: 927
A15: 증산동 | B15: 703
A16: 수색동 | B16: 623

Sheet Sheet2 (hidden)
A1: 은평구 동별 장애인현황(유형별) (2024. 3월말)
A2: 동별 | B2: 합계 | E2: 지적 | H2: 자폐 | K2: 발달장애인 | N2: 발달장애인비율
B3: 합계 | C3: 남성 | D3: 여성 | E3: 소계 | F3: 남성 | G3: 여성 | H3: 소계 | I3: 남성 | J3: 여성 | K3: 소계 | L3: 남성 | M3: 여성
A4: 합 계 | B4: =C4+D4 -> 21285 | C4: =SUM(C5:C20) -> 12402 | D4: =SUM(D5:D20) -> 8883 | E4: =F4+G4 -> 1882 | F4: =SUM(F5:F20) -> 1236 | G4: =SUM(G5:G20) -> 646 | H4: =I4+J4 -> 491 | I4: =SUM(I5:I20) -> 408 | J4: =SUM(J5:J20) -> 83 | K4: =L4+M4 -> 2373 | L4: =F4+I4 -> 1644 | M4: =G4+J4 -> 729 | N4: =K4/B4 -> 0.1114869626
A5: 녹번동 | B5: =C5+D5 -> 1614 | C5: =유형별!C5 -> 927 | D5: =유형별!D5 -> 687 | E5: =F5+G5 -> 113 | F5: =유형별!R5 -> 71 | G5: =유형별!S5 -> 42 | H5: =I5+J5 -> 24 | I5: =유형별!X5 -> 17 | J5: =유형별!Y5 -> 7 | K5: =E5+H5 -> 137 | L5: =F5+I5 -> 88 | M5: =G5+J5 -> 49 | N5: 0.08488228005
A6: 불광1동 | B6: 1642 | C6: =유형별!C6 -> 920 | D6: =유형별!D6 -> 722 | E6: 108 | F6: =유형별!R6 -> 62 | G6: =유형별!S6 -> 46 | H6: 31 | I6: =유형별!X6 -> 26 | J6: =유형별!Y6 -> 5 | K6: 139 | L6: 88 | M6: 51 | N6: 0.08465286236
A7: 불광2동 | B7: 1430 | C7: =유형별!C7 -> 841 | D7: =유형별!D7 -> 589 | E7: 115 | F7: =유형별!R7 -> 71 | G7: =유형별!S7 -> 44 | H7: 29 | I7: =유형별!X7 -> 29 | J7: =유형별!Y7 -> 0 | K7: 144 | L7: 100 | M7: 44 | N7: 0.1006993007
A8: 갈현1동 | B8: 681 | C8: =유형별!C8 -> 383 | D8: =유형별!D8 -> 298 | E8: 54 | F8: =유형별!R8 -> 34 | G8: =유형별!S8 -> 20 | H8: 17 | I8: =유형별!X8 -> 15 | J8: =유형별!Y8 -> 2 | K8: 71 | L8: 49 | M8: 22 | N8: 0.1042584435 | R8: =2206/21767 -> 0.1013460743
A9: 갈현2동 | B9: 1282 | C9: =유형별!C9 -> 754 | D9: =유형별!D9 -> 528 | E9: 118 | F9: =유형별!R9 -> 72 | G9: =유형별!S9 -> 46 | H9: 20 | I9: =유형별!X9 -> 15 | J9: =유형별!Y9 -> 5 | K9: 138 | L9: 87 | M9: 51 | N9: 0.1076443058
A10: 구산동 | B10: 2118 | C10: =유형별!C10 -> 1462 | D10: =유형별!D10 -> 656 | E10: 404 | F10: =유형별!R10 -> 315 | G10: =유형별!S10 -> 89 | H10: 44 | I10: =유형별!X10 -> 37 | J10: =유형별!Y10 -> 7 | K10: 448 | L10: 352 | M10: 96 | N10: 0.2115203022
A11: 대조동 | B11: 1212 | C11: =유형별!C11 -> 701 | D11: =유형별!D11 -> 511 | E11: 64 | F11: =유형별!R11 -> 44 | G11: =유형별!S11 -> 20 | H11: 27 | I11: =유형별!X11 -> 21 | J11: =유형별!Y11 -> 6 | K11: 91 | L11: 65 | M11: 26 | N11: 0.07508250825
A12: 응암1동 | B12: 1338 | C12: =유형별!C12 -> 729 | D12: =유형별!D12 -> 609 | E12: 70 | F12: =유형별!R12 -> 42 | G12: =유형별!S12 -> 28 | H12: 32 | I12: =유형별!X12 -> 27 | J12: =유형별!Y12 -> 5 | K12: 102 | L12: 69 | M12: 33 | N12: 0.07623318386
A13: 응암2동 | B13: 962 | C13: =유형별!C13 -> 532 | D13: =유형별!D13 -> 430 | E13: 70 | F13: =유형별!R13 -> 44 | G13: =유형별!S13 -> 26 | H13: 36 | I13: =유형별!X13 -> 30 | J13: =유형별!Y13 -> 6 | K13: 106 | L13: 74 | M13: 32 | N13: 0.1101871102
A14: 응암3동 | B14: 1293 | C14: =유형별!C14 -> 732 | D14: =유형별!D14 -> 561 | E14: 88 | F14: =유형별!R14 -> 60 | G14: =유형별!S14 -> 28 | H14: 18 | I14: =유형별!X14 -> 13 | J14: =유형별!Y14 -> 5 | K14: 106 | L14: 73 | M14: 33 | N14: 0.08197989172
A15: 역촌동 | B15: 2145 | C15: =유형별!C15 -> 1200 | D15: =유형별!D15 -> 945 | E15: 203 | F15: =유형별!R15 -> 124 | G15: =유형별!S15 -> 79 | H15: 36 | I15: =유형별!X15 -> 30 | J15: =유형별!Y15 -> 6 | K15: 239 | L15: 154 | M15: 85 | N15: 0.1114219114
A16: 신사1동 | B16: 1245 | C16: =유형별!C16 -> 746 | D16: =유형별!D16 -> 499 | E16: 150 | F16: =유형별!R16 -> 89 | G16: =유형별!S16 -> 61 | H16: 31 | I16: =유형별!X16 -> 25 | J16: =유형별!Y16 -> 6 | K16: 181 | L16: 114 | M16: 67 | N16: 0.1453815261
A17: 신사2동 | B17: 893 | C17: =유형별!C17 -> 512 | D17: =유형별!D17 -> 381 | E17: 82 | F17: =유형별!R17 -> 46 | G17: =유형별!S17 -> 36 | H17: 21 | I17: =유형별!X17 -> 17 | J17: =유형별!Y17 -> 4 | K17: 103 | L17: 63 | M17: 40 | N17: 0.1153415454
A18: 증산동 | B18: 697 | C18: =유형별!C18 -> 409 | D18: =유형별!D18 -> 288 | E18: 47 | F18: =유형별!R18 -> 32 | G18: =유형별!S18 -> 15 | H18: 18 | I18: =유형별!X18 -> 17 | J18: =유형별!Y18 -> 1 | K18: 65 | L18: 49 | M18: 16 | N18: 0.09325681492
A19: 수색동 | B19: 820 | C19: =유형별!C19 -> 444 | D19: =유형별!D19 -> 376 | E19: 64 | F19: =유형별!R19 -> 44 | G19: =유형별!S19 -> 20 | H19: 21 | I19: =유형별!X19 -> 18 | J19: =유형별!Y19 -> 3 | K19: 85 | L19: 62 | M19: 23 | N19: 0.1036585366
A20: 진관동 | B20: 1913 | C20: =유형별!C20 -> 1110 | D20: =유형별!D20 -> 803 | E20: 132 | F20: =유형별!R20 -> 86 | G20: =유형별!S20 -> 46 | H20: 86 | I20: =유형별!X20 -> 71 | J20: =유형별!Y20 -> 15 | K20: 218 | L20: 157 | M20: 61 | N20: 0.1139571354
A22: *발달장애인 수는 2,206명으로 전체 장애인의 10.1%

Sheet Sheet3 (hidden)
A2: 자치구 | B2: 장애유형 | C2: 2023 | G2: 자치구 | H2: 장애유형 | I2: 2022 | M2: 자치구 | N2: 장애유형 | O2: 2021
C3: 계 | D3: 남 | E3: 여 | I3: 계 | J3: 남 | K3: 여 | O3: 계 | P3: 남 | Q3: 여
A4: 은평구 | B4: 합 계 | C4: 21602 | D4: 12604 | E4: 8998 | G4: 은평구 | H4: 합 계 | I4: =SUM(I5:I19) -> 21753 | J4: =SUM(J5:J19) -> 12687 | K4: 9066 | M4: 은평구 | N4: 합 계 | O4: 21753 | P4: 12704 | Q4: 9049
B5: 지체 | C5: 8636 | D5: 4714 | E5: 3922 | H5: 지체 | I5: 8837 | J5: 4842 | K5: 3995 | N5: 지체 | O5: 8917 | P5: 4897 | Q5: 4020
B6: 시각 | C6: 2265 | D6: 1340 | E6: 925 | H6: 시각 | I6: 2274 | J6: 1364 | K6: 910 | N6: 시각 | O6: 2315 | P6: 1387 | Q6: 928
B7: 청각 | C7: 3350 | D7: 1869 | E7: 1481 | H7: 청각 | I7: 3350 | J7: 1853 | K7: 1497 | N7: 청각 | O7: 3282 | P7: 1814 | Q7: 1468
B8: 언어 | C8: 173 | D8: 124 | E8: 49 | H8: 언어 | I8: 181 | J8: 134 | K8: 47 | N8: 언어 | O8: 177 | P8: 129 | Q8: 48
B9: 지적 | C9: 1863 | D9: 1222 | E9: 641 | H9: 지적 | I9: 1828 | J9: 1200 | K9: 628 | N9: 지적 | O9: 1805 | P9: 1185 | Q9: 620
B10: 뇌병변 | C10: 2188 | D10: 1307 | E10: 881 | H10: 뇌병변 | I10: 2218 | J10: 1318 | K10: 900 | N10: 뇌병변 | O10: 2244 | P10: 1349 | Q10: 895
B11: 자폐성 | C11: 450 | D11: 377 | E11: 73 | H11: 자폐성 | I11: 396 | J11: 333 | K11: 63 | N11: 자폐성 | O11: 355 | P11: 298 | Q11: 57
B12: 정신 | C12: 1137 | D12: 696 | E12: 441 | H12: 정신 | I12: 1148 | J12: 705 | K12: 443 | N12: 정신 | O12: 1162 | P12: 718 | Q12: 444
B13: 신장 | C13: 928 | D13: 569 | E13: 359 | H13: 신장 | I13: 894 | J13: 542 | K13: 352 | N13: 신장 | O13: 874 | P13: 533 | Q13: 341
B14: 심장 | C14: 49 | D14: 26 | E14: 23 | H14: 심장 | I14: 55 | J14: 24 | K14: 31 | N14: 심장 | O14: 55 | P14: 26 | Q14: 29
B15: 호흡기 | C15: 122 | D15: 88 | E15: 34 | H15: 호흡기 | I15: 120 | J15: 86 | K15: 34 | N15: 호흡기 | O15: 130 | P15: 92 | Q15: 38
B16: 간 | C16: 164 | D16: 109 | E16: 55 | H16: 간 | I16: 168 | J16: 113 | K16: 55 | N16: 간 | O16: 166 | P16: 114 | Q16: 52
B17: 안면 | C17: 25 | D17: 13 | E17: 12 | H17: 안면 | I17: 22 | J17: 11 | K17: 11 | N17: 안면 | O17: 23 | P17: 12 | Q17: 11
B18: 장루.요루 | C18: 187 | D18: 118 | E18: 69 | H18: 장루.요루 | I18: 194 | J18: 126 | K18: 68 | N18: 장루.요루 | O18: 181 | P18: 114 | Q18: 67
B19: 뇌전증 | C19: 65 | D19: 32 | E19: 33 | H19: 뇌전증 | I19: 68 | J19: 36 | K19: 32 | N19: 뇌전증 | O19: 67 | P19: 36 | Q19: 31
C22: 2023 | D22: 2022 | E22: 2021 | G22: 2024 | H22: 2025 | I22: 2026 | J22: 2027 | K22: 2028
A23: 외부신체기능장애 | C23: =SUM(C5,C10,C6,C7,C8,C17) -> 16637 | D23: =SUM(I5,I10,I6,I7,I8,I17) -> 16882 | E23: =SUM(O5,O10,O6,O7,O8,O17) -> 16958 | G23: =C23+C23*$G$29 -> 16478.99841 | H23: =G23+G23*$G$29 -> 16322.49736 | I23: =H23+H23*$G$29 -> 16167.48261 | J23: =I23+I23*$G$29 -> 16013.94002 | K23: =J23+J23*$G$29 -> 15861.85563
A24: 내부기관장애 | C24: =SUM(C13,C14,C16,C15,C18,C19) -> 1515 | D24: =SUM(I13:I16,I18,I19) -> 1499 | E24: =SUM(O13:O16,O18:O19) -> 1473 | G24: =C24+C24*$G$30 -> 1536.4524 | H24: =G24+G24*$G$30 -> 1558.208566 | I24: =H24+H24*$G$30 -> 1580.272799 | J24: =I24+I24*$G$30 -> 1602.649462 | K24: =J24+J24*$G$30 -> 1625.342978
A25: 정신적장애 | C25: =SUM(C9,C12,C11) -> 3450 | D25: =SUM(I9,I11,I12) -> 3372 | E25: =SUM(O9,O11,O12) -> 3322 | G25: =C25+C25*$G$31 -> 3515.8605 | H25: =G25+G25*$G$31 -> 3582.978277 | I25: =H25+H25*$G$31 -> 3651.377332 | J25: =I25+I25*$G$31 -> 3721.082126 | K25: =J25+J25*$G$31 -> 3792.117583
A26: 계 | C26: =SUM(C23:C25) -> 21602 | D26: =SUM(D23:D25) -> 21753 | E26: =SUM(E23:E25) -> 21753 | G26: =SUM(G23:G25) -> 21531.31131 | H26: =SUM(H23:H25) -> 21463.68421 | I26: =SUM(I23:I25) -> 21399.13274 | J26: =SUM(J23:J25) -> 21337.67161 | K26: =SUM(K23:K25) -> 21279.3162
A29: 외부신체기능장애 | C29: =(D23-C23)/D23 -> 0.01451249852 | D29: 0.004481660573 | F29: =(C29+D29)/2 -> 0.009497079546 | G29: -0.009497
A30: 내부기관장애 | C30: -0.01067378252 | D30: -0.01765105227 | F30: =(C30+D30)/2 -> -0.0141624174 | G30: 0.01416
A31: 정신적장애 | C31: -0.0231316726 | D31: -0.01505117399 | F31: =(C31+D31)/2 -> -0.01909142329 | G31: 0.01909
A32: 계
C36: 2024 | D36: 2025 | E36: 2026 | F36: 2027 | G36: 2028
C37: -0.0026
A38: 외부신체기능장애 | B38: 16637 | C38: 16593.7438 | D38: 16550.60007 | E38: 16507.56851 | F38: 16464.64883 | G38: 16421.84074
A39: 내부기관장애 | B39: 1515 | C39: 1511.061 | D39: 1507.132241 | E39: 1503.213698 | F39: 1499.305342 | G39: 1495.407148
A40: 정신적장애 | B40: 3450 | C40: 3441.03 | D40: 3432.083322 | E40: 3423.159905 | F40: 3414.25969 | G40: 3405.382614
B41: 21602 | C41: 21545.8348 | D41: 21489.81563 | E41: 21433.94211 | F41: 21378.21386 | G41: 21322.6305
